{"text_format":"1","workbook":"xlsx","n_sheets":5,"sheets":["титульник ","сводные данные","План","Кабинеты","Start"],"not_rendered":{"charts":0,"images":0,"macros":1,"external_links":0,"defined_names":0,"comments":0,"pivot_tables":0},"unopened":[],"bounds":{"document_bytes":16777216,"sheet_cells":100000,"rows_first":2000,"rows_last":500,"rows_between":2000,"halvings":0,"cell_chars":16384,"cell_head_chars":4096},"cells_cut":0,"cells_raw":0,"read":"whole","date_system":"1900"}

{"sheet":"титульник ","index":0,"n_rows":33,"n_cols":45,"rows_kept":33,"cut":false,"hidden":false,"merged":[[13,0,13,12],[8,0,9,11],[21,34,21,61],[17,14,18,61],[19,14,19,18],[19,20,19,61],[0,0,0,11],[1,0,2,11],[4,0,5,11],[4,14,5,61],[6,0,7,11],[6,14,7,61],[32,34,32,36],[10,14,13,61],[14,14,15,61],[27,34,27,43],[27,44,27,47],[20,14,20,19],[20,20,20,60],[21,14,21,27],[21,30,21,33],[29,34,29,61],[30,34,31,61],[31,14,31,33],[23,14,23,19],[23,20,23,61],[25,14,25,19],[25,20,25,31],[27,14,27,25],[27,27,27,31],[32,8,32,9],[32,14,32,24],[28,7,29,8],[29,14,29,33],[32,25,32,26],[32,27,32,31],[32,32,32,33]]}
["Утверждаю"]
["Директор ОГБПОУ \"ДМК\""]
[]
[]
["И.А.Казаченко",null,null,null,null,null,null,null,null,null,null,null,null,null,"УЧЕБНЫЙ ПЛАН"]
[]
[null,null,null,null,null,null,null,null,null,null,null,null,null,null," программы подготовки специалистов среднего звена"]
[]
["Приказ № 39-у от 28.02.2025"]
[]
[null,null,null,null,null,null,null,null,null,null,null,null,null,null,"Областное государственное бюджетное  профессиональное образовательное учреждение \"Димитровградский музыкальный колледж\""]
[]
[]
["Рассмотрено Педагогическим Советом  Протокол № 04 от 26.02.2025"]
[null,null,null,null,null,null,null,null,null,null,null,null,null,null,"наименование образовательного учреждения (организации)"]
[]
[]
[null,null,null,null,null,null,null,null,null,null,null,null,null,null,"по специальности среднего профессионального образования"]
[]
[null,null,null,null,null,null,null,null,null,null,null,null,null,null,"53.02.07",null,null,null,null,null,"Теория музыки"]
[null,null,null,null,null,null,null,null,null,null,null,null,null,null,"код",null,null,null,null,null,"наименование специальности"]
[null,null,null,null,null,null,null,null,null,null,null,null,null,null,"по программе углубленной подготовки",null,null,null,null,null,null,null,null,null,null,null,null,null,null,null,"   на базе",null,null,null,"основного общего образования"]
[]
[null,null,null,null,null,null,null,null,null,null,null,null,null,null,"квалификация",null,null,null,null,null,"Преподаватель, организатор музыкально-просветительской деятельности"]
[]
[null,null,null,null,null,null,null,null,null,null,null,null,null,null,"форма обучения",null,null,null,null,null,"Очная"]
[]
[null,null,null,null,null,null,null,null,null,null,null,null,null,null,"нормативный срок освоения ППССЗ  ",null,null,null,null,null,null,null,null,null,null,null,null,"3г 10м",null,null,null,null,null,null,"год начала подготовки по УП",null,null,null,null,null,null,null,null,null,2025]
[]
[null,null,null,null,null,null,null,null,null,null,null,null,null,null,"профиль получаемого профессионального образования",null,null,null,null,null,null,null,null,null,null,null,null,null,null,null,null,null,null,null,"Искусство и культура 53.00.00 Музыкальное искусство"]
[null,null,null,null,null,null,null,null,null,null,null,null,null,null,null,null,null,null,null,null,null,null,null,null,null,null,null,null,null,null,null,null,null,null,"при реализации программы среднего (полного) общего образования"]
[]
[null,null,null,null,null,null,null,null,null,null,null,null,null,null,"Приказ об утверждении ФГОС",null,null,null,null,null,null,null,null,null,null,"от ",null,"2021-05-17",null,null,null,null,"     № ",null,253]

{"sheet":"сводные данные","index":1,"n_rows":10,"n_cols":55,"rows_kept":10,"cut":false,"hidden":false,"merged":[[9,51,9,53],[9,54,9,56],[9,45,9,47],[9,48,9,50],[9,25,9,27],[9,31,9,33],[9,34,9,35],[9,36,9,37],[9,28,9,30],[9,41,9,42],[9,13,9,15],[9,16,9,18],[9,19,9,21],[9,22,9,24],[9,1,9,3],[9,4,9,6],[9,7,9,9],[9,10,9,12],[8,45,8,47],[8,13,8,15],[8,16,8,18],[8,19,8,21],[8,22,8,24],[8,1,8,3],[8,4,8,6],[8,7,8,9],[8,10,8,12],[9,38,9,40],[9,43,9,44],[8,48,8,50],[8,51,8,53],[8,54,8,56],[8,25,8,27],[8,31,8,33],[8,34,8,35],[8,36,8,37],[8,28,8,30],[8,38,8,40],[8,41,8,42],[8,43,8,44],[6,36,6,37],[7,25,7,27],[7,31,7,33],[7,34,7,35],[7,36,7,37],[6,28,6,30],[6,51,6,53],[6,54,6,56],[6,38,6,40],[6,41,6,42],[6,43,6,44],[6,45,6,47],[6,48,6,50],[7,1,7,3],[7,4,7,6],[7,7,7,9],[7,10,7,12],[6,22,6,24],[6,1,6,3],[6,4,6,6],[6,7,6,9],[6,10,6,12],[5,51,5,53],[5,54,5,56],[5,38,5,40],[5,41,5,42],[5,43,5,44],[5,45,5,47],[7,13,7,15],[7,16,7,18],[7,19,7,21],[7,22,7,24],[6,13,6,15],[6,16,6,18],[6,19,6,21],[7,48,7,50],[7,28,7,30],[7,51,7,53],[7,54,7,56],[7,38,7,40],[7,41,7,42],[7,43,7,44],[7,45,7,47],[6,25,6,27],[6,31,6,33],[6,34,6,35],[5,36,5,37],[4,28,4,30],[4,13,4,15],[4,16,4,18],[4,19,4,21],[5,48,5,50],[5,28,5,30],[5,1,5,3],[5,4,5,6],[5,7,5,9],[4,10,4,12],[4,31,4,33],[4,34,4,35],[5,13,5,15],[5,16,5,18],[5,19,5,21],[5,22,5,24],[4,22,4,24],[5,10,5,12],[5,25,5,27],[5,31,5,33],[5,34,5,35],[1,51,3,53],[1,54,3,56],[2,45,3,47],[2,48,3,50],[2,31,2,37],[3,43,3,44],[4,51,4,53],[4,54,4,56],[4,38,4,40],[4,41,4,42],[4,43,4,44],[4,45,4,47],[4,48,4,50],[4,36,4,37],[0,0,0,48],[1,0,4,0],[1,1,2,18],[1,19,2,27],[1,28,1,44],[1,45,1,50],[3,1,3,6],[3,7,3,12],[3,13,3,18],[3,19,3,21],[2,28,2,30],[3,34,3,35],[3,31,3,33],[3,41,3,42],[3,28,3,30],[2,38,2,44],[3,22,3,24],[3,25,3,27],[4,25,4,27],[3,36,3,37],[3,38,3,40],[4,1,4,3],[4,4,4,6],[4,7,4,9]]}
["2 Сводные данные по бюджету времени"]
["Курс","Обучение по дисциплинам и междисциплинарным курсам",null,null,null,null,null,null,null,null,null,null,null,null,null,null,null,null,null,"Промежуточная аттестация",null,null,null,null,null,null,null,null,"Практики",null,null,null,null,null,null,null,null,null,null,null,null,null,null,null,null,"ГИА",null,null,null,null,null,"Каникулы",null,null,"Всего"]
[null,null,null,null,null,null,null,null,null,null,null,null,null,null,null,null,null,null,null,null,null,null,null,null,null,null,null,null,"Учебная практика",null,null,"Производственная практика (по профилю специальности)",null,null,null,null,null,null,"Производственная практика (преддипломная)",null,null,null,null,null,null,"Подго-\r\nтовка",null,null,"Прове-\r\nдение"]
[null,"Всего",null,null,null,null,null,"1 сем",null,null,null,null,null,"2 сем",null,null,null,null,null,"Всего",null,null,"1 сем",null,null,"2 сем",null,null,"Всего",null,null,"Всего",null,null,"1 сем",null,"2 сем",null,"Всего",null,null,"1 сем",null,"2 сем"]
[null,"нед.",null,null,"час.",null,null,"нед.",null,null,"час.",null,null,"нед.",null,null,"час.",null,null,"нед.",null,null,"нед.",null,null,"нед.",null,null,"нед.",null,null,"нед.",null,null,"нед.",null,"нед.",null,"нед.",null,null,"нед.",null,"нед.",null,"нед.",null,null,"нед.",null,null,"нед.",null,null,"нед."]
["I","36 ",null,null,"1945/1296",null,null,"16 ",null,null,"864/576",null,null,"20 ",null,null,"1081/720",null,null,"4 ",null,null,"2 ",null,null,"2 ",null,null,null,null,null,"1 ",null,null,null,null,"1 ",null,null,null,null,null,null,null,null,null,null,null,null,null,null,"2 ",null,null,"43 "]
["II","36 ",null,null,"1942/1296",null,null,"16 ",null,null,"862/576",null,null,"20 ",null,null,"1080/720",null,null,"4 ",null,null,"2 ",null,null,"2 ",null,null,null,null,null,"2 ",null,null,null,null,"2 ",null,null,null,null,null,null,null,null,null,null,null,null,null,null,"11 ",null,null,"53 "]
["III","36 ",null,null,"1945/1296",null,null,"16 ",null,null,"864/576",null,null,"20 ",null,null,"1081/720",null,null,"4 ",null,null,"2 ",null,null,"2 ",null,null,null,null,null,"2 ",null,null,null,null,"2 ",null,null,null,null,null,null,null,null,null,null,null,null,null,null,"10 ",null,null,"52 "]
["IV","35 ",null,null,"1890/1260",null,null,"16 ",null,null,"864/576",null,null,"19 ",null,null,"1026/684",null,null,"1 ",null,null,"1 ",null,null,null,null,null,null,null,null,null,null,null,null,null,null,null,"1 ",null,null,"1 ",null,null,null,"1 ",null,null,"3 ",null,null,"10 ",null,null,"51 "]
["Всего","143 ",null,null,"7722/5148",null,null,null,null,null,"3454/2304",null,null,null,null,null,"4268/2844",null,null,"13 ",null,null,null,null,null,null,null,null,19,null,null,"5 ",null,null,null,null,null,null,"1 ",null,null,null,null,null,null,"1 ",null,null,"3 ",null,null,"33 ",null,null,"199 "]

{"sheet":"План","index":2,"n_rows":97,"n_cols":134,"rows_kept":97,"cut":false,"hidden":false,"merged":[[2,62,2,68],[2,8,5,8],[0,0,5,0],[0,1,5,1],[0,3,1,9],[0,10,1,19],[2,15,2,19],[2,3,5,3],[2,4,5,4],[2,5,5,5],[2,6,5,6],[2,7,5,7],[2,9,5,9],[2,11,5,11],[2,13,5,13],[3,15,5,15],[3,16,3,19],[4,16,5,16],[4,17,5,17],[4,18,5,18],[4,19,5,19],[0,20,0,131],[1,20,1,33],[1,34,1,47],[2,69,2,75],[2,90,2,96],[2,76,2,82],[2,83,2,89],[2,97,2,103],[2,118,2,124],[2,125,2,131],[2,104,2,110],[2,111,2,117],[1,48,1,61],[1,62,1,75],[1,76,1,89],[1,90,1,103],[1,104,1,117],[1,118,1,131],[4,27,5,27],[4,28,5,28],[2,41,2,47],[2,48,2,54],[3,76,3,82],[3,83,3,89],[3,90,3,96],[3,97,3,103],[3,104,3,110],[3,111,3,117],[5,39,5,39],[5,40,5,40],[4,41,5,41],[4,42,5,42],[4,50,5,50],[4,51,4,54],[5,53,5,53],[5,54,5,54],[4,21,5,21],[4,29,5,29],[4,30,4,33],[4,37,4,40],[2,55,2,61],[3,20,3,26],[3,27,3,33],[4,20,5,20],[4,36,5,36],[4,35,5,35],[5,32,5,32],[4,34,5,34],[5,33,5,33],[4,22,5,22],[4,23,4,26],[5,25,5,25],[5,26,5,26],[2,34,2,40],[2,20,2,26],[2,27,2,33],[3,34,3,40],[3,41,3,47],[3,48,3,54],[3,55,3,61],[4,71,5,71],[4,72,4,75],[5,74,5,74],[5,75,5,75],[4,76,5,76],[4,77,5,77],[4,78,5,78],[4,79,4,82],[5,81,5,81],[5,82,5,82],[4,83,5,83],[4,84,5,84],[4,85,5,85],[4,86,4,89],[5,88,5,88],[3,118,3,124],[3,125,3,131],[3,62,3,68],[3,69,3,75],[4,69,5,69],[4,70,5,70],[5,89,5,89],[4,90,5,90],[4,91,5,91],[4,92,5,92],[4,93,4,96],[5,93,5,93],[5,94,5,94],[5,95,5,95],[5,96,5,96],[4,97,5,97],[4,98,5,98],[4,99,5,99],[4,100,4,103],[4,43,5,43],[4,44,4,47],[5,46,5,46],[5,47,5,47],[4,48,5,48],[4,49,5,49],[4,55,5,55],[4,56,5,56],[4,57,5,57],[4,58,4,61],[5,60,5,60],[5,61,5,61],[4,62,5,62],[4,63,5,63],[4,64,5,64],[4,65,4,68],[5,67,5,67],[5,68,5,68],[5,100,5,100],[5,101,5,101],[5,102,5,102],[5,103,5,103],[4,104,5,104],[4,105,5,105],[4,106,5,106],[4,107,4,110],[5,107,5,107],[5,108,5,108],[5,109,5,109],[5,110,5,110],[4,111,5,111],[4,112,5,112],[4,113,5,113],[4,114,4,117],[5,114,5,114],[5,115,5,115],[5,116,5,116],[5,117,5,117],[4,132,5,132],[4,133,5,133],[4,118,5,118],[4,119,5,119],[4,120,5,120],[4,121,4,124],[5,121,5,121],[5,122,5,122],[5,123,5,123],[5,124,5,124],[4,125,5,125],[4,126,5,126],[4,127,5,127],[4,128,4,131],[5,128,5,128],[5,129,5,129],[5,130,5,130],[5,131,5,131],[82,3,82,11],[82,17,82,19],[82,20,82,21],[82,27,82,28],[82,34,82,35],[82,83,82,84],[82,87,82,89],[82,41,82,42],[82,125,82,126],[82,129,82,131],[82,104,82,105],[82,108,82,110],[82,111,82,112],[82,115,82,117],[86,3,86,15],[86,17,86,19],[82,90,82,91],[82,94,82,96],[82,76,82,77],[82,80,82,82],[83,17,83,19],[84,17,84,19],[85,17,85,19],[86,90,86,92],[86,94,86,96],[82,118,82,119],[82,122,82,124],[86,97,86,99],[86,101,86,103],[86,76,86,78],[86,80,86,82],[82,97,82,98],[82,101,82,103],[86,125,86,127],[86,129,86,131],[86,104,86,106],[86,108,86,110],[86,111,86,113],[86,115,86,117],[86,118,86,120],[86,122,86,124],[87,83,87,85],[87,87,87,88],[87,125,87,127],[87,129,87,130],[86,83,86,85],[86,87,86,89],[87,104,87,106],[87,108,87,109],[87,111,87,113],[87,115,87,116],[87,118,87,120],[87,122,87,123],[87,97,87,99],[87,101,87,102],[89,3,89,15],[89,17,89,19],[87,90,87,92],[87,94,87,95],[89,76,89,78],[89,80,89,81],[87,73,87,74],[87,76,87,78],[87,80,87,81],[87,3,87,15],[87,17,87,19],[88,3,88,15],[88,17,88,19],[88,73,88,74],[89,97,89,99],[89,101,89,102],[89,73,89,74],[89,118,89,120],[89,122,89,123],[89,83,89,85],[89,87,89,88],[89,90,89,92],[89,94,89,95],[89,125,89,127],[89,129,89,130],[89,104,89,106],[89,108,89,109],[89,111,89,113],[89,115,89,116],[90,101,90,102],[90,125,90,127],[90,129,90,130],[90,104,90,106],[90,108,90,109],[90,111,90,113],[90,115,90,116],[90,118,90,120],[90,122,90,123],[90,3,90,15],[90,17,90,19],[90,97,90,99],[90,73,90,74],[90,76,90,78],[90,80,90,81],[90,83,90,85],[90,87,90,88],[90,90,90,92],[90,94,90,95],[92,0,96,0],[92,1,92,19],[96,1,96,19],[92,90,92,96],[96,20,96,26],[93,1,93,19],[93,83,93,89],[96,118,96,124],[96,27,96,33],[93,90,93,96],[92,97,92,103],[92,104,92,110],[94,90,94,96],[95,111,95,117],[95,118,95,124],[94,1,94,19],[95,1,95,19],[95,20,95,26],[95,27,95,33],[95,69,95,75],[94,83,94,89],[94,97,94,103],[95,90,95,96],[95,62,95,68],[92,132,96,133],[92,111,92,117],[92,118,92,124],[93,111,93,117],[93,118,93,124],[92,76,92,82],[93,97,93,103],[93,104,93,110],[93,76,93,82],[94,111,94,117],[94,118,94,124],[96,83,96,89],[93,125,93,131],[92,83,92,89],[94,125,94,131],[95,125,95,131],[92,125,92,131],[96,34,96,40],[96,41,96,47],[96,48,96,54],[96,55,96,61],[95,104,95,110],[95,76,95,82],[95,83,95,89],[0,132,3,133],[0,2,5,2],[96,125,96,131],[96,90,96,96],[96,97,96,103],[96,104,96,110],[96,111,96,117],[96,62,96,68],[96,69,96,75],[96,76,96,82],[95,34,95,40],[95,41,95,47],[95,48,95,54],[94,104,94,110],[95,55,95,61],[94,76,94,82],[95,97,95,103],[105,64,105,70],[105,71,105,77],[105,22,105,28],[105,29,105,35],[105,36,105,42],[105,43,105,49],[105,50,105,56],[105,57,105,63],[103,22,103,28],[103,29,103,35],[103,36,103,42],[103,43,103,49],[103,50,103,56],[103,57,103,63],[103,64,103,70],[103,71,103,77],[104,22,104,28],[104,29,104,35],[104,36,104,42],[104,43,104,49],[104,50,104,56],[104,57,104,63],[104,64,104,70],[104,71,104,77]]}
["Индекс","Наименование циклов, разделов,\r\nдисциплин, профессиональных модулей, МДК, практик","Групповые, мелкогрупповые, индивидуальные формы занятий","Формы промежуточной аттестации",null,null,null,null,null,null,"Учебная нагрузка обучающихся, ч.",null,null,null,null,null,null,null,null,null,"Распределение по курсам и семестрам",null,null,null,null,null,null,null,null,null,null,null,null,null,null,null,null,null,null,null,null,null,null,null,null,null,null,null,null,null,null,null,null,null,null,null,null,null,null,null,null,null,null,null,null,null,null,null,null,null,null,null,null,null,null,null,null,null,null,null,null,null,null,null,null,null,null,null,null,null,null,null,null,null,null,null,null,null,null,null,null,null,null,null,null,null,null,null,null,null,null,null,null,null,null,null,null,null,null,null,null,null,null,null,null,null,null,null,null,null,null,null,"Максимальная учебная нагрузка"]
[null,null,null,null,null,null,null,null,null,null,null,null,null,null,null,null,null,null,null,null,"Курс 1",null,null,null,null,null,null,null,null,null,null,null,null,null,"Курс 2",null,null,null,null,null,null,null,null,null,null,null,null,null,"Курс 3",null,null,null,null,null,null,null,null,null,null,null,null,null,"Курс 4",null,null,null,null,null,null,null,null,null,null,null,null,null,"Курс 5",null,null,null,null,null,null,null,null,null,null,null,null,null,"Курс 6",null,null,null,null,null,null,null,null,null,null,null,null,null,"Курс 7",null,null,null,null,null,null,null,null,null,null,null,null,null,"Курс 8"]
[null,null,null,"Экзамены","Зачеты","Диффер. зачеты","Курсовые проекты (работы)","Итоговые письм. КР","Домашние КР","Другие формы контроля",null,"Максимальная",null,"Самостоятельная",null,"Обязательная",null,null,null,null,"Семестр 1",null,null,null,null,null,null,"Семестр 2",null,null,null,null,null,null,"Семестр 3",null,null,null,null,null,null,"Семестр 4",null,null,null,null,null,null,"Семестр 5",null,null,null,null,null,null,"Семестр 6",null,null,null,null,null,null,"Семестр 7",null,null,null,null,null,null,"Семестр 8",null,null,null,null,null,null,"Семестр 9",null,null,null,null,null,null,"Семестр A",null,null,null,null,null,null,"Семестр B",null,null,null,null,null,null,"Семестр C",null,null,null,null,null,null,"Семестр D",null,null,null,null,null,null,"Семестр E",null,null,null,null,null,null,"Семестр F",null,null,null,null,null,null,"Семестр G"]
[null,null,null,null,null,null,null,null,null,null,null,null,null,null,null,"Всего","в том числе",null,null,null,"26  нед",null,null,null,null,null,null,"26  нед",null,null,null,null,null,null,"26  нед",null,null,null,null,null,null,"26  нед",null,null,null,null,null,null,"26  нед",null,null,null,null,null,null,"26  нед",null,null,null,null,null,null,"26  нед",null,null,null,null,null,null,"26  нед",null,null,null,null,null,null,"26  нед",null,null,null,null,null,null,"26  нед",null,null,null,null,null,null,"26  нед",null,null,null,null,null,null,"26  нед",null,null,null,null,null,null,"26  нед",null,null,null,null,null,null,"26  нед",null,null,null,null,null,null," нед",null,null,null,null,null,null," нед"]
[null,null,null,null,null,null,null,null,null,null,null,null,null,null,null,null,"Теор. обучение","Лаб. и пр. занятия",null,"Курс. проект.","Максим.","Самост.","Всего","в том числе",null,null,null,"Максим.","Самост.","Всего","в том числе",null,null,null,"Максим.","Самост.","Всего","в том числе",null,null,null,"Максим.","Самост.","Всего","в том числе",null,null,null,"Максим.","Самост.","Всего","в том числе",null,null,null,"Максим.","Самост.","Всего","в том числе",null,null,null,"Максим.","Самост.","Всего","в том числе",null,null,null,"Максим.","Самост.","Всего","в том числе",null,null,null,"Максим.","Самост.","Всего","в том числе",null,null,null,"Максим.","Самост.","Всего","в том числе",null,null,null,"Максим.","Самост.","Всего","в том числе",null,null,null,"Максим.","Самост.","Всего","в том числе",null,null,null,"Максим.","Самост.","Всего","в том числе",null,null,null,"Максим.","Самост.","Всего","в том числе",null,null,null,"Максим.","Самост.","Всего","в том числе",null,null,null,"Максим.","Самост.","Всего","в том числе",null,null,null,"Обяз. часть","Вар. часть"]
[null,null,null,null,null,null,null,null,null,null,null,null,null,null,null,null,null,null,null,null,null,null,null,"Теор. обучение","Лаб. и пр. занятия","Лаб. занятия","Курс. проект.",null,null,null,"Теор. обучение","Лаб. и пр. занятия","Лаб. занятия","Курс. проект.",null,null,null,"Теор. обучение","Лаб. и пр. занятия","Лаб. занятия","Курс. проект.",null,null,null,"Теор. обучение","Лаб. и пр. занятия","Лаб. занятия","Курс. проект.",null,null,null,"Теор. обучение","Лаб. и пр. занятия","Лаб. занятия","Курс. проект.",null,null,null,"Теор. обучение","Лаб. и пр. занятия","Лаб. занятия","Курс. проект.",null,null,null,"Теор. обучение","Лаб. и пр. занятия","Лаб. занятия","Курс. проект.",null,null,null,"Теор. обучение","Лаб. и пр. занятия","Лаб. занятия","Курс. проект.",null,null,null,"Теор. обучение","Лаб. и пр. занятия","Лаб. занятия","Курс. проект.",null,null,null,"Теор. обучение","Лаб. и пр. занятия","Лаб. занятия","Курс. проект.",null,null,null,"Теор. обучение","Лаб. и пр. занятия","Лаб. занятия","Курс. проект.",null,null,null,"Теор. обучение","Лаб. и пр. занятия","Лаб. занятия","Курс. проект.",null,null,null,"Теор. обучение","Лаб. и пр. занятия","Лаб. занятия","Курс. проект.",null,null,null,"Теор. обучение","Лаб. и пр. занятия","Лаб. занятия","Курс. проект.",null,null,null,"Теор. обучение","Лаб. и пр. занятия","Лаб. занятия","Курс. проект.",null,null,null,"Теор. обучение","Лаб. и пр. занятия","Лаб. занятия","Курс. проект."]
["1","2",3,4,5,6,"6","7","8",7,"10",8,"12",9,"14",10,11,12,"18",13,"20",14,15,16,17,"25",18,"27",19,20,21,22,"32",23,"34",24,25,26,27,"39",28,"41",29,30,31,32,"46",33,"48",34,35,36,37,"53",38,"55",39,40,41,42,"60",43,"62",44,45,46,47,"67",48,"69",49,50,51,52,"74",53,"76","77","78","79","80","81","82","83","84","85","86","87","88","89","90","91","92","93","94","95","96","97","98","99","100","101","102","103","104","105","106","107","108","109","110","111","112","113","114","115","116","117","118","119","120","121","122","123","124","125","126","127","128","129","130","131",54,55]
[null,"час/нед",null,null,null,null,null,null,null,null,null,null,null,null,null,null,null,null,null,null,31.5,null,{"$f":"W9/16","v":21},null,null,null,null,31.5,null,{"$f":"AD9/20","v":21},null,null,null,null,22.5,null,{"$f":"AK9/16","v":15},null,null,null,null,22.5,null,{"$f":"AR9/20","v":15},null,null,null,null,4.5,null,{"$f":"AY9/16","v":3},null,null,null,null,4.5,null,{"$f":"BF9/20","v":3},null,null,null,null,null,null,{"$f":"BM9/16","v":0},null,null,null,null,null,null,{"$f":"BT9/19","v":0},null,null,null,null,"NaN",null,"NaN",null,null,null,null,"NaN",null,"NaN",null,null,null,null,"NaN",null,"NaN",null,null,null,null,"NaN",null,"NaN",null,null,null,null,"NaN",null,"NaN",null,null,null,null,"NaN",null,"NaN",null,null,null,null,"NaN",null,"NaN",null,null,null,null,"NaN",null,"NaN"]
["ОУЦ.00","Общеобразовательный учебный цикл",null,3,4,6,null,null,null,14,null,2106,0,702,0,1404,1276,128,null,null,504,168,336,320,16,null,0,null,210,420,380,40,null,0,null,120,240,208,32,null,0,null,150,300,260,40,null,0,null,{"$f":"AX10+AX24","v":24},{"$f":"AY10+AY24","v":48},{"$f":"AZ10+AZ24","v":48},{"$f":"BA10+BA24","v":0},null,{"$f":"BC10+BC24","v":0},null,{"$f":"BE10+BE24","v":30},{"$f":"BF10+BF24","v":60},{"$f":"BG10+BG24","v":60},{"$f":"BH10+BH24","v":0},null,{"$f":"BJ10+BJ24","v":0},null,{"$f":"BL10+BL24","v":0},{"$f":"BM10+BM24","v":0},{"$f":"BN10+BN24","v":0},{"$f":"BO10+BO24","v":0},null,{"$f":"BQ10+BQ24","v":0},null,{"$f":"BS10+BS24","v":0},{"$f":"BT10+BT24","v":0},{"$f":"BU10+BU24","v":0},{"$f":"BV10+BV24","v":0},null,{"$f":"BX10+BX24","v":0},null,null,null,null,null,null,null,null,null,null,null,null,null,null,null,null,null,null,null,null,null,null,null,null,null,null,null,null,null,null,null,null,null,null,null,null,null,null,null,null,null,null,null,null,null,null,null,null,null,null,null,null,null,null,null,null,1404,{"$f":"ED10+ED24","v":0}]
["ОУП.00","Обязательный учебные предметы",null,3,4,6,{"$error":"#REF!"},{"$error":"#REF!"},{"$error":"#REF!"},14,null,1134,0,378,0,756,628,128,null,null,264,88,176,160,16,0,0,330,110,220,180,40,0,0,240,80,160,128,32,0,0,300,100,200,160,40,0,0,{"$f":"SUM(AW11:AW19)","v":0},{"$f":"SUM(AX11:AX22)","v":24},48,48,0,0,0,90,30,60,60,0,0,0,0,0,0,0,0,0,0,0,0,0,0,0,0,0,0,0,0,0,0,0,0,0,0,{"$f":"SUM(CH11:CH22)","v":0},0,0,0,0,0,0,0,0,0,0,0,0,0,0,0,0,0,0,0,0,0,0,0,0,0,0,0,0,0,0,0,0,0,0,0,0,0,0,0,0,0,0,0,0,0,0,{"$f":"SUM(EC11:EC19)","v":756},0]
["ОУП.01"," Русский язык","гр",4,null,null,null,null,null,123,null,{"$f":"N11+P11","v":108},null,{"$f":"V11+AC11+AJ11+AQ11+AX11+BE11+BL11+BS11","v":36},null,{"$f":"W11+AD11+AK11+AR11+AY11+BF11+BM11+BT11","v":72},72,0,null,null,24,8,16,16,null,null,null,30,10,20,20,null,null,null,24,8,16,16,null,null,null,30,10,20,20,null,null,null,null,null,null,null,null,null,null,null,null,null,null,null,null,null,null,null,null,null,null,null,null,null,null,null,null,null,null,null,null,null,null,null,null,null,null,null,null,null,null,null,null,null,null,null,null,null,null,null,null,null,null,null,null,null,null,null,null,null,null,null,null,null,null,null,null,null,null,null,null,null,null,null,null,null,null,null,null,null,null,null,null,null,null,null,128]
["ОУП.02"," Литература","гр",4,null,null,null,null,null,123,null,{"$f":"N12+P12","v":132},null,{"$f":"V12+AC12+AJ12+AQ12+AX12+BE12+BL12+BS12","v":44},null,88,88,0,null,null,48,16,32,32,null,null,null,30,10,20,20,null,null,null,48,8,16,16,null,null,null,60,10,20,20,null,null,null,null,null,null,null,null,null,null,null,null,null,null,null,null,null,null,null,null,null,null,null,null,null,null,null,null,null,null,null,null,null,null,null,null,null,null,null,null,null,null,null,null,null,null,null,null,null,null,null,null,null,null,null,null,null,null,null,null,null,null,null,null,null,null,null,null,null,null,null,null,null,null,null,null,null,null,null,null,null,null,null,null,null,null,null,40]
["ОУП.03","Родная литература","гр",null,null,null,null,null,null,4,null,54,null,18,null,36,36,null,null,null,null,null,null,null,null,null,null,null,null,null,null,null,null,null,null,8,16,16,null,null,null,null,10,20,20,null,null,null,null,null,null,null,null,null,null,null,null,null,null,null,null,null,null,null,null,null,null,null,null,null,null,null,null,null,null,null,null,null,null,null,null,null,null,null,null,null,null,null,null,null,null,null,null,null,null,null,null,null,null,null,null,null,null,null,null,null,null,null,null,null,null,null,null,null,null,null,null,null,null,null,null,null,null,null,null,null,null,null,null,null,null,null,68]
["ОУП.04","Иностранный язык","мг",null,null,34,null,null,null,12,null,{"$f":"N14+P14","v":192},null,{"$f":"V14+AC14+AJ14+AQ14+AX14+BE14+BL14+BS14","v":64},null,{"$f":"W14+AD14+AK14+AR14+AY14+BF14+BM14+BT14","v":128},{"$f":"X14+AE14+AL14+AS14+AZ14+BG14+BN14+BU14","v":0},{"$f":"Y14+AF14+AM14+AT14+BA14+BH14+BO14+BV14","v":128},null,null,24,8,16,null,16,null,null,60,20,40,null,40,null,null,48,16,32,null,32,null,null,60,20,40,null,40,null,null,null,null,null,null,null,null,null,null,null,null,null,null,null,null,null,null,null,null,null,null,null,null,null,null,null,null,null,null,null,null,null,null,null,null,null,null,null,null,null,null,null,null,null,null,null,null,null,null,null,null,null,null,null,null,null,null,null,null,null,null,null,null,null,null,null,null,null,null,null,null,null,null,null,null,null,null,null,null,null,null,null,null,null,null,72]
["ОУП.05","Обществознание","гр",null,null,4,null,null,null,null,null,60,null,20,null,40,40,0,null,null,null,null,null,null,null,null,null,null,null,null,null,null,null,null,null,null,null,null,null,null,null,60,20,40,40,null,null,null,null,null,null,null,null,null,null,null,null,null,null,null,null,null,null,null,null,null,null,null,null,null,null,null,null,null,null,null,null,null,null,null,null,null,null,null,null,null,null,null,null,null,null,null,null,null,null,null,null,null,null,null,null,null,null,null,null,null,null,null,null,null,null,null,null,null,null,null,null,null,null,null,null,null,null,null,null,null,null,null,null,null,null,null,36]
["ОУП.06","Математика","мг",3,null,null,null,null,null,12,null,102,null,34,null,{"$f":"W16+AD16+AK16+AR16+AY16+BF16+BM16+BT16","v":68},68,0,null,null,24,8,16,16,null,null,null,30,10,20,20,null,null,null,48,16,32,32,null,null,null,null,null,null,null,null,null,null,null,null,null,null,null,null,null,null,null,null,null,null,null,null,null,null,null,null,null,null,null,null,null,null,null,null,null,null,null,null,null,null,null,null,null,null,null,null,null,null,null,null,null,null,null,null,null,null,null,null,null,null,null,null,null,null,null,null,null,null,null,null,null,null,null,null,null,null,null,null,null,null,null,null,null,null,null,null,null,null,null,null,null,null,144]
["ОУП.07","Естествознание","гр",null,null,2,null,null,null,1,null,{"$f":"N17+P17","v":108},null,{"$f":"V17+AC17+AJ17+AQ17+AX17+BE17+BL17+BS17","v":36},null,72,72,0,null,null,48,16,32,32,null,null,null,60,20,40,40,null,null,null,null,null,null,null,null,null,null,null,null,null,null,null,null,null,null,null,null,null,null,null,null,null,null,null,null,null,null,null,null,null,null,null,null,null,null,null,null,null,null,null,null,null,null,null,null,null,null,null,null,null,null,null,null,null,null,null,null,null,null,null,null,null,null,null,null,null,null,null,null,null,null,null,null,null,null,null,null,null,null,null,null,null,null,null,null,null,null,null,null,null,null,null,null,null,null,null,null,null,72]
["ОУП.08","Астрономия","гр",null,null,4,null,null,null,3,null,{"$f":"N18+P18","v":54},null,{"$f":"V18+AC18+AJ18+AQ18+AX18+BE18+BL18+BS18","v":18},null,36,36,0,null,null,null,null,null,null,null,null,null,null,null,null,null,null,null,null,24,8,16,16,null,null,null,30,10,20,20,null,null,null,null,null,null,null,null,null,null,null,null,null,null,null,null,null,null,null,null,null,null,null,null,null,null,null,null,null,null,null,null,null,null,null,null,null,null,null,null,null,null,null,null,null,null,null,null,null,null,null,null,null,null,null,null,null,null,null,null,null,null,null,null,null,null,null,null,null,null,null,null,null,null,null,null,null,null,null,null,null,null,null,null,null,null,null,72]
["ОУП.09","Основы безопасности и защита Родины","гр",null,null,2,null,null,null,1,null,108,null,36,null,72,72,0,null,null,48,16,32,32,null,null,null,60,20,40,40,null,null,null,null,null,null,null,null,null,null,null,null,null,null,null,null,null,null,null,null,null,null,null,null,null,null,null,null,null,null,null,null,null,null,null,null,null,null,null,null,null,null,null,null,null,null,null,null,null,null,null,null,null,null,null,null,null,null,null,null,null,null,null,null,null,null,null,null,null,null,null,null,null,null,null,null,null,null,null,null,null,null,null,null,null,null,null,null,null,null,null,null,null,null,null,null,null,null,null,null,null,124]
["ОУП.10","Физическая культура","гр",null,1234,null,null,null,null,null,null,216,null,72,null,144,144,0,null,null,48,16,32,32,null,null,null,60,20,40,40,null,null,null,48,16,32,32,null,null,null,60,20,40,40,null,null,null,null,null,null,null,null,null,null,null,null,null,null,null,null,null,null,null,null,null,null,null,null,null,null,null,null,null,null,null,null,null,null,null,null,null,null,null,null,null,null,null,null,null,null,null,null,null,null,null,null,null,null,null,null,null,null,null,null,null,null,null,null,null,null,null,null,null,null,null,null,null,null,null,null,null,null,null,null,null,null,null,null,null,null,null,144]
["ПУП.00","Профильные учебные предметы",null,8,null,1,{"$f":"LEN(#REF!)+LEN(#REF!)+LEN(G26)+LEN(#REF!)+LEN(#REF!)+LEN(#REF!)+LEN(#REF!)","v":{"$error":"#REF!"}},{"$f":"LEN(#REF!)+LEN(#REF!)+LEN(H26)+LEN(#REF!)+LEN(#REF!)+LEN(#REF!)+LEN(#REF!)","v":{"$error":"#REF!"}},{"$f":"LEN(#REF!)+LEN(#REF!)+LEN(I26)+LEN(#REF!)+LEN(#REF!)+LEN(#REF!)+LEN(#REF!)","v":{"$error":"#REF!"}},7,null,972,{"$f":"SUM(M21:M26)","v":0},324,{"$f":"SUM(O21:O26)","v":0},648,648,{"$f":"SUM(R21:R26)","v":0},null,null,240,80,160,160,{"$f":"SUM(Y21:Y26)","v":0},{"$f":"SUM(Z21:Z26)","v":0},{"$f":"SUM(AA21:AA26)","v":0},{"$f":"SUM(AB21:AB26)","v":360},100,200,200,{"$f":"SUM(AF21:AF26)","v":0},{"$f":"SUM(AG21:AG26)","v":0},{"$f":"SUM(AH21:AH26)","v":0},{"$f":"SUM(AI21:AI26)","v":192},40,80,80,{"$f":"SUM(AM21:AM26)","v":0},{"$f":"SUM(AN21:AN26)","v":0},{"$f":"SUM(AO21:AO26)","v":0},{"$f":"SUM(AP21:AP26)","v":240},50,100,100,{"$f":"SUM(AT21:AT26)","v":0},0,0,72,24,48,48,0,0,0,90,30,60,60,0,0,0,0,0,0,0,0,0,0,0,0,0,0,0,0,0,0,{"$f":"SUM(BZ21:BZ26)","v":0},0,0,0,0,0,0,0,0,0,0,0,0,0,0,0,0,0,0,0,0,0,0,0,0,0,0,0,0,0,0,0,{"$f":"SUM(DF21:DF26)","v":0},0,0,0,0,0,0,0,0,0,0,0,0,0,0,0,0,0,0,0,0,0,0,648,{"$f":"SUM(ED21:ED26)","v":0}]
["ПУП.01","История мировой культуры","гр",null,null,4,null,null,null,123,null,{"$f":"N22+P22","v":216},null,{"$f":"V22+AC22+AJ22+AQ22+AX22+BE22+BL22+BS22","v":72},null,{"$f":"W22+AD22+AK22+AR22+AY22+BF22+BM22+BT22","v":144},144,0,null,null,48,16,32,32,null,null,null,60,20,40,40,null,null,null,48,16,32,32,null,null,null,60,20,40,40,null,null,null,null,null,null,null,null,null,null,null,null,null,null,null,null,null,null,null,null,null,null,null,null,null,null,null,null,null,null,null,null,null,null,null,null,null,null,null,null,null,null,null,null,null,null,null,null,null,null,null,null,null,null,null,null,null,null,null,null,null,null,null,null,null,null,null,null,null,null,null,null,null,null,null,null,null,null,null,null,null,null,null,null,null,null,null,144]
["ПУП.02","История","гр",2,null,null,null,null,null,1,null,{"$f":"N23+P23","v":216},null,{"$f":"V23+AC23+AJ23+AQ23+AX23+BE23+BL23+BS23","v":72},null,{"$f":"W23+AD23+AK23+AR23+AY23+BF23+BM23+BT23","v":144},{"$f":"X23+AE23+AL23+AS23+AZ23+BG23+BN23+BU23","v":144},{"$f":"Y23+AF23+AM23+AT23+BA23+BH23+BO23+BV23","v":0},null,null,96,32,64,64,null,null,null,120,40,80,80,null,null,null,null,null,null,null,null,null,null,null,null,null,null,null,null,null,null,null,null,null,null,null,null,null,null,null,null,null,null,null,null,null,null,null,null,null,null,null,null,null,null,null,null,null,null,null,null,null,null,null,null,null,null,null,null,null,null,null,null,null,null,null,null,null,null,null,null,null,null,null,null,null,null,null,null,null,null,null,null,null,null,null,null,null,null,null,null,null,null,null,null,null,null,null,null,null,null,null,null,null,144]
["ПУП.03","Народная музыкальная культура","гр",2,null,null,null,null,null,1,null,{"$f":"N24+P24","v":54},null,{"$f":"V24+AC24+AJ24+AQ24+AX24+BE24+BL24+BS24","v":18},null,{"$f":"W24+AD24+AK24+AR24+AY24+BF24+BM24+BT24","v":36},36,0,null,null,24,8,16,16,null,null,null,30,10,20,20,null,null,null,null,null,null,null,null,null,null,null,null,null,null,null,null,null,null,null,null,null,null,null,null,null,null,null,null,null,null,null,null,null,null,null,null,null,null,null,null,null,null,null,null,null,null,null,null,null,null,null,null,null,null,null,null,null,null,null,null,null,null,null,null,null,null,null,null,null,null,null,null,null,null,null,null,null,null,null,null,null,null,null,null,null,null,null,null,null,null,null,null,null,null,null,null,null,null,null,null,null,36]
["ПУП.04","Музыкальная литература (зарубежная и отечественная)","мг",1246,null,null,null,null,null,35,null,486,null,162,null,324,324,0,null,null,72,24,48,48,null,null,null,90,30,60,60,null,null,null,72,24,48,48,null,null,null,90,30,60,60,null,null,null,72,24,48,48,null,null,null,90,30,60,60,null,null,null,null,null,null,null,null,null,null,null,null,null,null,null,null,null,null,null,null,null,null,null,null,null,null,null,null,null,null,null,null,null,null,null,null,null,null,null,null,null,null,null,null,null,null,null,null,null,null,null,null,null,null,null,null,null,null,null,null,null,null,null,null,null,null,null,null,null,null,null,null,null,324]
[null,"час/нед",null,null,null,null,null,null,null,null,null,null,null,null,null,null,null,null,null,null,22.5,null,15,null,null,null,null,22.5,null,15,null,null,null,null,31.4,null,21,null,null,null,null,31.5,null,21,null,null,null,null,49.5,null,33,null,null,null,null,49.5,null,33,null,null,null,null,54,null,36,null,null,null,null,54,null,36,null,null,null,null,"NaN",null,"NaN",null,null,null,null,"NaN",null,"NaN",null,null,null,null,"NaN",null,"NaN",null,null,null,null,"NaN",null,"NaN",null,null,null,null,"NaN",null,"NaN",null,null,null,null,"NaN",null,"NaN",null,null,null,null,"NaN",null,"NaN",null,null,null,null,"NaN",null,"NaN"]
["ОГСЭ.00","Общий гуманитарный и социально-экономический цикл",null,{"$f":"LEN(D28)+LEN(D29)+LEN(D30)+LEN(D31)+LEN(D32)","v":1},{"$f":"LEN(E28)+LEN(E29)+LEN(E30)+LEN(E31)+LEN(E32)","v":3},3,0,0,0,3,null,{"$f":"SUM(L28:L32)","v":531},{"$f":"SUM(M28:M32)","v":0},177,0,354,{"$f":"SUM(Q28:Q32)","v":192},162,null,null,null,{"$f":"SUM(V28:V32)","v":0},{"$f":"SUM(W28:W32)","v":0},{"$f":"SUM(X28:X32)","v":0},{"$f":"SUM(Y28:Y32)","v":0},null,{"$f":"SUM(AA28:AA32)","v":0},null,{"$f":"SUM(AC28:AC32)","v":0},{"$f":"SUM(AD28:AD32)","v":0},{"$f":"SUM(AE28:AE32)","v":0},{"$f":"SUM(AF28:AF32)","v":0},null,{"$f":"SUM(AH28:AH32)","v":0},59,{"$f":"SUM(AJ28:AJ32)","v":24},{"$f":"SUM(AK28:AK32)","v":48},{"$f":"SUM(AL28:AL32)","v":48},{"$f":"SUM(AM28:AM32)","v":0},null,{"$f":"SUM(AO28:AO32)","v":0},null,{"$f":"SUM(AQ28:AQ32)","v":0},{"$f":"SUM(AR28:AR32)","v":0},{"$f":"SUM(AS28:AS32)","v":0},{"$f":"SUM(AT28:AT32)","v":0},null,{"$f":"SUM(AV28:AV32)","v":0},167,{"$f":"SUM(AX28:AX32)","v":56},{"$f":"SUM(AY28:AY32)","v":112},{"$f":"SUM(AZ28:AZ32)","v":48},{"$f":"SUM(BA28:BA32)","v":64},null,{"$f":"SUM(BC28:BC32)","v":0},null,{"$f":"SUM(BE28:BE32)","v":30},{"$f":"SUM(BF28:BF32)","v":60},{"$f":"SUM(BG28:BG32)","v":0},{"$f":"SUM(BH28:BH32)","v":60},null,{"$f":"SUM(BJ28:BJ32)","v":0},null,{"$f":"SUM(BL28:BL32)","v":48},{"$f":"SUM(BM28:BM32)","v":96},{"$f":"SUM(BN28:BN32)","v":96},{"$f":"SUM(BO28:BO32)","v":0},null,{"$f":"SUM(BQ28:BQ32)","v":0},52,{"$f":"SUM(BS28:BS32)","v":19},{"$f":"SUM(BT28:BT32)","v":38},{"$f":"SUM(BU28:BU32)","v":0},{"$f":"SUM(BV28:BV32)","v":38},null,{"$f":"SUM(BX28:BX32)","v":0},null,null,null,null,null,null,null,null,null,null,null,null,null,null,null,null,null,null,null,null,null,null,null,null,null,null,null,null,null,null,null,null,null,null,null,null,null,null,null,null,null,null,null,null,null,null,null,null,null,null,null,null,null,null,null,null,{"$f":"SUM(EC28:EC32)","v":354},{"$f":"SUM(ED28:ED32)","v":0}]
["ОГСЭ.01","Основы философии","гр",null,null,5,null,null,null,null,null,{"$f":"N28+P28","v":72},null,24,null,{"$f":"W28+AD28+AK28+AR28+AY28+BF28+BM28+BT28","v":48},48,0,null,null,null,null,null,null,null,null,null,null,null,null,null,null,null,null,null,null,null,null,null,null,null,null,null,null,null,null,null,null,59,24,48,48,null,null,null,null,null,null,null,null,null,null,null,null,null,null,null,null,null,null,null,null,null,null,null,null,null,null,null,null,null,null,null,null,null,null,null,null,null,null,null,null,null,null,null,null,null,null,null,null,null,null,null,null,null,null,null,null,null,null,null,null,null,null,null,null,null,null,null,null,null,null,null,null,null,null,null,null,null,null,null,null,48]
["ОГСЭ.02","История","гр",3,null,null,null,null,null,null,null,{"$f":"N29+P29","v":72},null,24,null,48,48,0,null,null,null,null,null,null,null,null,null,null,null,null,null,null,null,null,59,24,48,48,null,null,null,null,null,null,null,null,null,null,null,null,null,null,null,null,null,null,null,null,null,null,null,null,null,null,null,null,null,null,null,null,null,null,null,null,null,null,null,null,null,null,null,null,null,null,null,null,null,null,null,null,null,null,null,null,null,null,null,null,null,null,null,null,null,null,null,null,null,null,null,null,null,null,null,null,null,null,null,null,null,null,null,null,null,null,null,null,null,null,null,null,null,null,48]
["ОГСЭ.03","Психология общения","гр",null,null,7,null,null,null,null,null,{"$f":"N30+P30","v":72},null,24,null,48,48,0,null,null,null,null,null,null,null,null,null,null,null,null,null,null,null,null,null,null,null,null,null,null,null,null,null,null,null,null,null,null,null,null,null,null,null,null,null,null,null,null,null,null,null,null,59,24,48,48,null,null,null,null,null,null,null,null,null,null,null,null,null,null,null,null,null,null,null,null,null,null,null,null,null,null,null,null,null,null,null,null,null,null,null,null,null,null,null,null,null,null,null,null,null,null,null,null,null,null,null,null,null,null,null,null,null,null,null,null,null,null,null,null,null,null,48]
["ОГСЭ.04","Иностранный язык","мг",null,null,8,null,null,null,567,null,159,null,53,null,106,16,90,null,null,null,null,null,null,null,null,null,null,null,null,null,null,null,null,null,null,null,null,null,null,null,null,null,null,null,null,null,null,44,16,32,null,32,null,null,28,10,20,null,20,null,null,22,8,16,16,null,null,null,52,19,38,null,38,null,null,null,null,null,null,null,null,null,null,null,null,null,null,null,null,null,null,null,null,null,null,null,null,null,null,null,null,null,null,null,null,null,null,null,null,null,null,null,null,null,null,null,null,null,null,null,null,null,null,null,null,null,null,null,null,null,null,106]
["ОГСЭ.05","Физическая культура","гр",null,567,null,null,null,null,null,null,{"$f":"N32+P32","v":156},null,52,null,104,32,72,null,null,null,null,null,null,null,null,null,null,null,null,null,null,null,null,null,null,null,null,null,null,null,null,null,null,null,null,null,null,64,16,32,null,32,null,null,80,20,40,null,40,null,null,64,16,32,32,null,null,null,null,null,null,null,null,null,null,null,null,null,null,null,null,null,null,null,null,null,null,null,null,null,null,null,null,null,null,null,null,null,null,null,null,null,null,null,null,null,null,null,null,null,null,null,null,null,null,null,null,null,null,null,null,null,null,null,null,null,null,null,null,null,null,104]
["П","Профессиональный цикл"]
["ОП.00","Общепрофессиональные дисциплины",null,{"$f":"LEN(D35)+LEN(D36)+LEN(#REF!)+LEN(D37)+LEN(D38)+LEN(D39)+LEN(D40)+LEN(D44)","v":{"$error":"#REF!"}},{"$f":"LEN(E35)+LEN(E36)+LEN(#REF!)+LEN(E37)+LEN(E38)+LEN(E39)+LEN(E40)+LEN(E44)","v":{"$error":"#REF!"}},{"$f":"LEN(F35)+LEN(F36)+LEN(#REF!)+LEN(F37)+LEN(F38)+LEN(F39)+LEN(F40)+LEN(F44)","v":{"$error":"#REF!"}},{"$f":"LEN(G35)+LEN(G36)+LEN(#REF!)+LEN(G37)+LEN(G38)+LEN(G39)+LEN(G40)+LEN(G44)","v":{"$error":"#REF!"}},{"$f":"LEN(H35)+LEN(H36)+LEN(#REF!)+LEN(H37)+LEN(H38)+LEN(H39)+LEN(H40)+LEN(H44)","v":{"$error":"#REF!"}},{"$f":"LEN(I35)+LEN(I36)+LEN(#REF!)+LEN(I37)+LEN(I38)+LEN(I39)+LEN(I40)+LEN(I44)","v":{"$error":"#REF!"}},{"$f":"LEN(J35)+LEN(J36)+LEN(#REF!)+LEN(J37)+LEN(J38)+LEN(J39)+LEN(J40)+LEN(J44)","v":{"$error":"#REF!"}},null,1954,{"$f":"SUM(M35:M44)","v":0},652,{"$f":"SUM(O35:O44)","v":0},1302,{"$f":"SUM(Q35:Q44)","v":173},{"$f":"SUM(R35:R44)","v":1129},null,null,108,{"$f":"SUM(V35:V44)","v":56},{"$f":"SUM(W35:W44)","v":112},{"$f":"SUM(X35:X44)","v":16},{"$f":"SUM(Y35:Y44)","v":96},null,{"$f":"SUM(AA35:AA44)","v":0},135,{"$f":"SUM(AC35:AC44)","v":70},{"$f":"SUM(AD35:AD44)","v":140},{"$f":"SUM(AE35:AE44)","v":20},{"$f":"SUM(AF35:AF44)","v":120},null,{"$f":"SUM(AH35:AH44)","v":0},120,{"$f":"SUM(AJ35:AJ44)","v":48},{"$f":"SUM(AK35:AK44)","v":96},{"$f":"SUM(AL35:AL44)","v":0},{"$f":"SUM(AM35:AM44)","v":96},null,{"$f":"SUM(AO35:AO44)","v":0},150,{"$f":"SUM(AQ35:AQ44)","v":70},{"$f":"SUM(AR35:AR44)","v":140},{"$f":"SUM(AS35:AS44)","v":0},{"$f":"SUM(AT35:AT44)","v":140},null,{"$f":"SUM(AV35:AV44)","v":0},144,{"$f":"SUM(AX35:AX44)","v":64},{"$f":"SUM(AY35:AY44)","v":128},{"$f":"SUM(AZ35:AZ44)","v":16},{"$f":"SUM(BA35:BA44)","v":112},null,{"$f":"SUM(BC35:BC44)","v":0},180,{"$f":"SUM(BE35:BE44)","v":90},{"$f":"SUM(BF35:BF44)","v":180},{"$f":"SUM(BG35:BG44)","v":20},{"$f":"SUM(BH35:BH44)","v":160},null,{"$f":"SUM(BJ35:BJ44)","v":0},264,{"$f":"SUM(BL35:BL44)","v":120},{"$f":"SUM(BM35:BM44)","v":240},{"$f":"SUM(BN35:BN44)","v":80},{"$f":"SUM(BO35:BO44)","v":160},null,{"$f":"SUM(BQ35:BQ44)","v":0},256,{"$f":"SUM(BS35:BS44)","v":134},{"$f":"SUM(BT35:BT44)","v":266},{"$f":"SUM(BU35:BU44)","v":57},{"$f":"SUM(BV35:BV44)","v":209},null,{"$f":"SUM(BX35:BX44)","v":0},null,null,null,null,null,null,null,null,null,null,null,null,null,null,null,null,null,null,null,null,null,null,null,null,null,null,null,null,null,null,null,null,null,null,null,null,null,null,null,null,null,null,null,null,null,null,null,null,null,null,null,null,null,null,null,null,{"$f":"SUM(EC35:EC44)","v":1369},{"$f":"SUM(ED35:ED44)","v":0}]
["ОП.01","Музыкальная литература (зарубежная и отечественная)","мг",78,null,null,null,null,null,null,null,{"$f":"N35+P35","v":158},null,{"$f":"V35+AC35+AJ35+AQ35+AX35+BE35+BL35+BS35","v":53},null,{"$f":"W35+AD35+AK35+AR35+AY35+BF35+BM35+BT35","v":105},{"$f":"X35+AE35+AL35+AS35+AZ35+BG35+BN35+BU35","v":105},{"$f":"Y35+AF35+AM35+AT35+BA35+BH35+BO35+BV35","v":0},null,null,null,null,null,null,null,null,null,null,null,null,null,null,null,null,null,null,null,null,null,null,null,null,null,null,null,null,null,null,null,null,null,null,null,null,null,null,null,null,null,null,null,null,72,24,48,48,null,null,null,85,29,57,57,null,null,null,null,null,null,null,null,null,null,null,null,null,null,null,null,null,null,null,null,null,null,null,null,null,null,null,null,null,null,null,null,null,null,null,null,null,null,null,null,null,null,null,null,null,null,null,null,null,null,null,null,null,null,null,null,null,null,null,105]
["ОП.02","Сольфеджио","мг",357,null,2,null,null,null,1468,null,{"$f":"N36+P36","v":429},null,{"$f":"V36+AC36+AJ36+AQ36+AX36+BE36+BL36+BS36","v":143},null,{"$f":"W36+AD36+AK36+AR36+AY36+BF36+BM36+BT36","v":286},{"$f":"X36+AE36+AL36+AS36+AZ36+BG36+BN36+BU36","v":0},{"$f":"Y36+AF36+AM36+AT36+BA36+BH36+BO36+BV36","v":286},null,null,48,16,32,null,32,null,null,60,20,40,null,40,null,null,48,16,32,null,32,null,null,60,20,40,null,40,null,null,48,16,32,null,32,null,null,60,20,40,null,40,null,null,48,16,32,null,32,null,null,null,19,38,null,38,null,null,null,null,null,null,null,null,null,null,null,null,null,null,null,null,null,null,null,null,null,null,null,null,null,null,null,null,null,null,null,null,null,null,null,null,null,null,null,null,null,null,null,null,null,null,null,null,null,null,null,null,null,null,null,null,null,null,248]
["ОП.03","Элементарная теория музыки","мг",2,null,1,null,null,null,null,null,108,null,36,null,72,0,72,null,null,48,16,32,null,32,null,null,60,20,40,null,40,null,null,null,null,null,null,null,null,null,null,null,null,null,null,null,null,null,null,null,null,null,null,null,null,null,null,null,null,null,null,null,null,null,null,null,null,null,null,null,null,null,null,null,null,null,null,null,null,null,null,null,null,null,null,null,null,null,null,null,null,null,null,null,null,null,null,null,null,null,null,null,null,null,null,null,null,null,null,null,null,null,null,null,null,null,null,null,null,null,null,null,null,null,null,null,null,null,null,null,null,72]
["ОП.04","Гармония","мг",57,null,null,null,null,null,3468,null,321,null,107,null,214,0,214,null,null,null,null,null,null,null,null,null,null,null,null,null,null,null,null,48,16,32,null,32,null,null,60,20,40,null,40,null,null,48,16,32,null,32,null,null,60,20,40,null,40,null,null,48,16,32,null,32,null,null,null,19,38,null,38,null,null,null,null,null,null,null,null,null,null,null,null,null,null,null,null,null,null,null,null,null,null,null,null,null,null,null,null,null,null,null,null,null,null,null,null,null,null,null,null,null,null,null,null,null,null,null,null,null,null,null,null,null,null,null,null,null,null,176]
["ОП.05","Анализ музыкальных произведений","мг",8,null,7,null,null,null,456,null,191,null,64,null,127,0,127,null,null,null,null,null,null,null,null,null,null,null,null,null,null,null,null,null,null,null,null,null,null,null,null,10,20,null,20,null,null,null,8,16,null,16,null,null,null,20,40,null,40,null,null,48,16,32,null,32,null,null,57,10,19,null,19,null,null,null,null,null,null,null,null,null,null,null,null,null,null,null,null,null,null,null,null,null,null,null,null,null,null,null,null,null,null,null,null,null,null,null,null,null,null,null,null,null,null,null,null,null,null,null,null,null,null,null,null,null,null,null,null,null,null,127]
["ОП.06","Народное музыкальное творчество","мг",null,null,2,null,null,null,1,null,54,null,18,null,36,null,36,null,null,null,8,16,16,null,null,null,30,10,20,20,null,null,null,null,null,null,null,null,null,null,null,null,null,null,null,null,null,null,null,null,null,null,null,null,null,null,null,null,null,null,null,null,null,null,null,null,null,null,114,null,null,null,null,null,null,null,null,null,null,null,null,null,null,null,null,null,null,null,null,null,null,null,null,null,null,null,null,null,null,null,null,null,null,null,null,null,null,null,null,null,null,null,null,null,null,null,null,null,null,null,null,null,null,null,null,null,null,null,null,null,null,36]
["ОП.07","Современная гармония","мг",null,null,null,null,null,null,8,null,57,null,19,null,38,null,38,null,null,null,null,null,null,null,null,null,null,null,null,null,null,null,null,null,null,null,null,null,null,null,null,null,null,null,null,null,null,null,null,null,null,null,null,null,null,null,null,null,null,null,null,null,null,null,null,null,null,null,null,19,38,null,38,null,null,null,null,null,null,null,null,null,null,null,null,null,null,null,null,null,null,null,null,null,null,null,null,null,null,null,null,null,null,null,null,null,null,null,null,null,null,null,null,null,null,null,null,null,null,null,null,null,null,null,null,null,null,null,null,null,null,38]
["ОП.08 ","Полифония","мг",null,null,8,null,null,null,7,null,105,null,35,null,70,null,70,null,null,null,null,null,null,null,null,null,null,null,null,null,null,null,null,null,null,null,null,null,null,null,null,null,null,null,null,null,null,null,null,null,null,null,null,null,null,null,null,null,null,null,null,null,16,32,null,32,null,null,null,19,38,null,38,null,null,null,null,null,null,null,null,null,null,null,null,null,null,null,null,null,null,null,null,null,null,null,null,null,null,null,null,null,null,null,null,null,null,null,null,null,null,null,null,null,null,null,null,null,null,null,null,null,null,null,null,null,null,null,null,null,null,70]
["ОП.09","Фортепиано","инд",568,null,3,null,null,null,1247,null,429,null,143,null,286,null,286,null,null,null,16,32,null,32,null,null,null,20,40,null,40,null,null,null,16,32,null,32,null,null,null,20,40,null,40,null,null,null,16,32,null,32,null,null,null,20,40,null,40,null,null,null,16,32,null,32,null,null,null,19,38,null,38,null,null,null,null,null,null,null,null,null,null,null,null,null,null,null,null,null,null,null,null,null,null,null,null,null,null,null,null,null,null,null,null,null,null,null,null,null,null,null,null,null,null,null,null,null,null,null,null,null,null,null,null,null,null,null,null,null,null,429]
["ОП.10","Безопасность жизнедеятельности","гр",null,null,7,null,null,null,56,null,102,null,34,null,68,68,0,null,null,null,null,null,null,null,null,null,null,null,null,null,null,null,null,null,null,null,null,null,null,null,null,null,null,null,null,null,null,24,8,16,16,null,null,null,30,10,20,20,null,null,null,48,16,32,32,null,null,null,null,null,null,null,null,null,null,null,null,null,null,null,null,null,null,null,null,null,null,null,null,null,null,null,null,null,null,null,null,null,null,null,null,null,null,null,null,null,null,null,null,null,null,null,null,null,null,null,null,null,null,null,null,null,null,null,null,null,null,null,null,null,null,68]
["ПМ","Профессиональные модули"]
["ПМ.01","Педагогическая деятельность",null,{"$f":"LEN(D47)+LEN(D48)+LEN(D49)+LEN(D50)+LEN(D51)+LEN(D52)+LEN(D53)+LEN(D54)","v":3},0,4,0,0,0,9,null,{"$f":"SUM(L47:L54)","v":618},{"$f":"SUM(M47:M54)","v":0},{"$f":"SUM(N47:N54)","v":206},0,{"$f":"SUM(P47:P54)","v":412},374,38,0,null,127,{"$f":"SUM(V47:V54)","v":0},{"$f":"SUM(W47:W54)","v":0},{"$f":"SUM(X47:X54)","v":0},{"$f":"SUM(Y47:Y54)","v":0},null,{"$f":"SUM(AA47:AA54)","v":0},null,{"$f":"SUM(AC47:AC54)","v":0},{"$f":"SUM(AD47:AD54)","v":0},{"$f":"SUM(AE47:AE54)","v":0},{"$f":"SUM(AF47:AF54)","v":0},null,{"$f":"SUM(AH47:AH54)","v":0},null,{"$f":"SUM(AJ47:AJ54)","v":48},{"$f":"SUM(AK47:AK54)","v":96},{"$f":"SUM(AL47:AL54)","v":96},{"$f":"SUM(AM47:AM54)","v":0},null,{"$f":"SUM(AO47:AO54)","v":0},null,{"$f":"SUM(AQ47:AQ54)","v":50},{"$f":"SUM(AR47:AR54)","v":100},{"$f":"SUM(AS47:AS54)","v":100},{"$f":"SUM(AT47:AT54)","v":0},null,{"$f":"SUM(AV47:AV54)","v":0},null,{"$f":"SUM(AX47:AX54)","v":24},{"$f":"SUM(AY47:AY54)","v":48},{"$f":"SUM(AZ47:AZ54)","v":48},{"$f":"SUM(BA47:BA54)","v":0},null,{"$f":"SUM(BC47:BC54)","v":0},null,{"$f":"SUM(BE47:BE54)","v":30},{"$f":"SUM(BF47:BF54)","v":60},{"$f":"SUM(BG47:BG54)","v":60},{"$f":"SUM(BH47:BH54)","v":0},null,{"$f":"SUM(BJ47:BJ54)","v":0},null,{"$f":"SUM(BL47:BL54)","v":16},{"$f":"SUM(BM47:BM54)","v":32},{"$f":"SUM(BN47:BN54)","v":32},{"$f":"SUM(BO47:BO54)","v":0},null,{"$f":"SUM(BQ47:BQ54)","v":0},null,{"$f":"SUM(BS47:BS54)","v":38},{"$f":"SUM(BT47:BT54)","v":76},{"$f":"SUM(BU47:BU54)","v":38},{"$f":"SUM(BV47:BV54)","v":38},null,{"$f":"SUM(BX47:BX54)","v":0},null,null,null,null,null,null,null,null,null,null,null,null,null,null,null,null,null,null,null,null,null,null,null,null,null,null,null,null,null,null,null,null,null,null,null,null,null,null,null,null,null,null,null,null,null,null,null,null,null,null,null,null,null,null,null,null,{"$f":"SUM(EC47:EC54)","v":412},{"$f":"SUM(ED47:ED54)","v":0}]
["МДК.01.01.","Педагогические основы преподавания творческих дисциплин: основы педагогики","гр",null,null,null,null,null,null,34,null,{"$f":"N47+P47","v":108},null,{"$f":"V47+AC47+AJ47+AQ47+AX47+BE47+BL47+BS47","v":36},null,{"$f":"W47+AD47+AK47+AR47+AY47+BF47+BM47+BT47","v":72},{"$f":"X47+AE47+AL47+AS47+AZ47+BG47+BN47+BU47","v":72},{"$f":"Y47+AF47+AM47+AT47+BA47+BH47+BO47+BV47","v":0},null,null,null,null,null,null,null,null,null,null,null,null,null,null,null,null,48,16,32,32,null,null,null,60,20,40,40,null,null,null,null,null,null,null,null,null,null,null,null,null,null,null,null,null,null,null,null,null,null,null,null,null,null,null,null,null,null,null,null,null,null,null,null,null,null,null,null,null,null,null,null,null,null,null,null,null,null,null,null,null,null,null,null,null,null,null,null,null,null,null,null,null,null,null,null,null,null,null,null,null,null,null,null,null,null,null,null,null,null,null,null,null,null,null,72]
[null,"Педагогические основы преподавания творческих дисциплин: основы системы музыкального образования","гр",6,null,null,null,null,null,5,null,{"$f":"N48+P48","v":108},null,{"$f":"V48+AC48+AJ48+AQ48+AX48+BE48+BL48+BS48","v":36},null,{"$f":"W48+AD48+AK48+AR48+AY48+BF48+BM48+BT48","v":72},{"$f":"X48+AE48+AL48+AS48+AZ48+BG48+BN48+BU48","v":72},{"$f":"Y48+AF48+AM48+AT48+BA48+BH48+BO48+BV48","v":0},null,null,null,null,null,null,null,null,null,null,null,null,null,null,null,null,null,null,null,null,null,null,null,null,null,null,null,null,null,null,48,16,32,32,null,null,null,60,20,40,40,null,null,null,null,null,null,null,null,null,null,null,null,null,null,null,null,null,null,null,null,null,null,null,null,null,null,null,null,null,null,null,null,null,null,null,null,null,null,null,null,null,null,null,null,null,null,null,null,null,null,null,null,null,null,null,null,null,null,null,null,null,null,null,null,null,null,null,null,null,null,null,null,null,72]
[null,"Педагогические основы преподавания творческих дисциплин: возрастная психология","гр",null,null,null,null,null,null,56,null,54,null,18,null,36,36,0,null,null,null,null,null,null,null,null,null,null,null,null,null,null,null,null,null,null,null,null,null,null,null,null,null,null,null,null,null,null,24,8,16,16,null,null,null,30,10,20,20,null,null,null,null,null,null,null,null,null,null,null,null,null,null,null,null,null,null,null,null,null,null,null,null,null,null,null,null,null,null,null,null,null,null,null,null,null,null,null,null,null,null,null,null,null,null,null,null,null,null,null,null,null,null,null,null,null,null,null,null,null,null,null,null,null,null,null,null,null,null,null,null,null,36]
[null,"Педагогические основы преподавания творческих ди сциплин: основы организации учебного процесса","гр",null,null,null,null,null,null,7,null,48,null,16,null,32,32,0,null,null,null,null,null,null,null,null,null,null,null,null,null,null,null,null,null,null,null,null,null,null,null,null,null,null,null,null,null,null,null,null,null,null,null,null,null,null,null,null,null,null,null,null,48,16,32,32,null,null,null,null,null,null,null,null,null,null,null,null,null,null,null,null,null,null,null,null,null,null,null,null,null,null,null,null,null,null,null,null,null,null,null,null,null,null,null,null,null,null,null,null,null,null,null,null,null,null,null,null,null,null,null,null,null,null,null,null,null,null,null,null,null,null,32]
[null,"Педагогические основы преподавания творческих дисциплин: основы психологии музыкального восприятия","гр",null,null,8,null,null,null,null,null,57,null,19,null,38,38,0,null,null,null,null,null,null,null,null,null,null,null,null,null,null,null,null,null,null,null,null,null,null,null,null,null,null,null,null,null,null,null,null,null,null,null,null,null,null,null,null,null,null,null,null,null,null,null,null,null,null,null,57,19,38,38,null,null,null,null,null,null,null,null,null,null,null,null,null,null,null,null,null,null,null,null,null,null,null,null,null,null,null,null,null,null,null,null,null,null,null,null,null,null,null,null,null,null,null,null,null,null,null,null,null,null,null,null,null,null,null,null,null,null,null,38]
["МДК.01.02","Учебно-методическое обеспечение учебного процесса: Методика преподавания музыкальной литературы","мг",4,null,null,null,null,null,3,null,{"$f":"N52+P52","v":78},null,{"$f":"V52+AC52+AJ52+AQ52+AX52+BE52+BL52+BS52","v":26},null,{"$f":"W52+AD52+AK52+AR52+AY52+BF52+BM52+BT52","v":52},{"$f":"X52+AE52+AL52+AS52+AZ52+BG52+BN52+BU52","v":52},{"$f":"Y52+AF52+AM52+AT52+BA52+BH52+BO52+BV52","v":0},null,null,16,null,null,null,null,null,null,null,null,null,null,null,null,null,16,16,32,32,null,null,null,30,10,20,20,null,null,null,null,null,null,null,null,null,null,null,null,null,null,null,null,null,null,null,null,null,null,null,null,null,null,null,null,null,null,null,null,null,null,null,null,null,null,null,null,null,null,null,null,null,null,null,null,null,null,null,null,null,null,null,null,null,null,null,null,null,null,null,null,null,null,null,null,null,null,null,null,null,null,null,null,null,null,null,null,null,null,null,null,null,null,null,52]
[null,"Учебно-методическое обеспечение учебного процесса: Методика преподавания сольфеджио и ритмики","мг",4,null,null,null,null,null,3,null,108,null,36,null,72,72,0,null,null,null,null,null,null,null,null,null,null,null,null,null,null,null,null,null,16,32,32,null,null,null,30,20,40,40,null,null,null,null,null,null,null,null,null,null,null,null,null,null,null,null,null,null,null,null,null,null,null,null,28,null,null,null,null,null,null,null,null,null,null,null,null,null,null,null,null,null,null,null,null,null,null,null,null,null,null,null,null,null,null,null,null,null,null,null,null,null,null,null,null,null,null,null,null,null,null,null,null,null,null,null,null,null,null,null,null,null,null,null,null,null,null,72]
[null,"Изучение методической литературы по музыкально-теоретическим дисциплинам","мг",null,null,null,null,null,null,8,null,57,null,19,null,38,0,38,null,null,null,null,null,null,null,null,null,null,null,null,null,null,null,null,null,null,null,null,null,null,null,null,null,null,null,null,null,null,24,null,null,null,null,null,null,null,null,null,null,null,null,null,null,null,null,null,null,null,null,null,19,38,null,38,null,null,null,null,null,null,null,null,null,null,null,null,null,null,null,null,null,null,null,null,null,null,null,null,null,null,null,null,null,null,null,null,null,null,null,null,null,null,null,null,null,null,null,null,null,null,null,null,null,null,null,null,null,null,null,null,null,null,38]
["ПМ.02","Организационная, музыкально-просветительская, репетиционно-концертная деятельность в творческом коллективе",null,{"$f":"LEN(D56)+LEN(D57)+LEN(D58)+LEN(D59)+LEN(#REF!)+LEN(D60)+LEN(D61)+LEN(D62)+LEN(D70)","v":{"$error":"#REF!"}},{"$f":"LEN(E56)+LEN(E57)+LEN(E58)+LEN(E59)+LEN(#REF!)+LEN(E60)+LEN(E61)+LEN(E62)+LEN(E70)","v":{"$error":"#REF!"}},{"$f":"LEN(F56)+LEN(F57)+LEN(F58)+LEN(F59)+LEN(#REF!)+LEN(F60)+LEN(F61)+LEN(F62)+LEN(F70)","v":{"$error":"#REF!"}},{"$f":"LEN(G56)+LEN(G57)+LEN(G58)+LEN(G59)+LEN(#REF!)+LEN(G60)+LEN(G61)+LEN(G62)+LEN(G70)","v":{"$error":"#REF!"}},{"$f":"LEN(H56)+LEN(H57)+LEN(H58)+LEN(H59)+LEN(#REF!)+LEN(H60)+LEN(H61)+LEN(H62)+LEN(H70)","v":{"$error":"#REF!"}},{"$f":"LEN(I56)+LEN(I57)+LEN(I58)+LEN(I59)+LEN(#REF!)+LEN(I60)+LEN(I61)+LEN(I62)+LEN(I70)","v":{"$error":"#REF!"}},{"$f":"LEN(J56)+LEN(J57)+LEN(J58)+LEN(J59)+LEN(#REF!)+LEN(J60)+LEN(J61)+LEN(J62)+LEN(J70)","v":{"$error":"#REF!"}},null,{"$f":"SUM(L56:L70)","v":1368},0,456,0,912,126,786,0,null,24,{"$f":"SUM(V56:V70)","v":64},{"$f":"SUM(W56:W70)","v":128},{"$f":"SUM(X56:X70)","v":48},{"$f":"SUM(Y56:Y70)","v":80},null,{"$f":"SUM(AA56:AA70)","v":0},null,{"$f":"SUM(AC56:AC70)","v":80},{"$f":"SUM(AD56:AD70)","v":160},{"$f":"SUM(AE56:AE70)","v":40},{"$f":"SUM(AF56:AF70)","v":120},null,{"$f":"SUM(AH56:AH70)","v":0},null,{"$f":"SUM(AJ56:AJ70)","v":16},{"$f":"SUM(AK56:AK70)","v":32},{"$f":"SUM(AL56:AL70)","v":0},{"$f":"SUM(AM56:AM70)","v":32},null,{"$f":"SUM(AO56:AO70)","v":0},null,{"$f":"SUM(AQ56:AQ70)","v":60},{"$f":"SUM(AR56:AR70)","v":120},{"$f":"SUM(AS56:AS70)","v":0},{"$f":"SUM(AT56:AT70)","v":120},null,{"$f":"SUM(AV56:AV70)","v":0},null,{"$f":"SUM(AX56:AX70)","v":56},{"$f":"SUM(AY56:AY70)","v":112},{"$f":"SUM(AZ56:AZ70)","v":0},{"$f":"SUM(BA56:BA70)","v":112},null,{"$f":"SUM(BC56:BC70)","v":0},null,{"$f":"SUM(BE56:BE70)","v":80},{"$f":"SUM(BF56:BF70)","v":160},{"$f":"SUM(BG56:BG70)","v":0},{"$f":"SUM(BH56:BH70)","v":160},null,{"$f":"SUM(BJ56:BJ70)","v":0},null,{"$f":"SUM(BL56:BL70)","v":24},{"$f":"SUM(BM56:BM70)","v":48},{"$f":"SUM(BN56:BN70)","v":0},{"$f":"SUM(BO56:BO70)","v":48},null,{"$f":"SUM(BQ56:BQ70)","v":0},null,{"$f":"SUM(BS56:BS70)","v":76},{"$f":"SUM(BT56:BT70)","v":152},{"$f":"SUM(BU56:BU70)","v":38},{"$f":"SUM(BV56:BV70)","v":114},null,{"$f":"SUM(BX56:BX70)","v":0},null,null,null,null,null,null,null,null,null,null,null,null,null,null,null,null,null,null,null,null,null,null,null,null,null,null,null,null,null,null,null,null,null,null,null,null,null,null,null,null,null,null,null,null,null,null,null,null,null,null,null,null,null,null,null,null,{"$f":"SUM(EC56:EC70)","v":336},{"$f":"SUM(ED56:ED70)","v":576}]
["МДК.02.01.","Основы организационной деятельности: лекторское дело","мг",null,null,8,null,null,null,67,null,{"$f":"N56+P56","v":111},null,{"$f":"V56+AC56+AJ56+AQ56+AX56+BE56+BL56+BS56","v":37},null,{"$f":"W56+AD56+AK56+AR56+AY56+BF56+BM56+BT56","v":74},{"$f":"X56+AE56+AL56+AS56+AZ56+BG56+BN56+BU56","v":0},{"$f":"Y56+AF56+AM56+AT56+BA56+BH56+BO56+BV56","v":74},null,null,null,null,null,null,null,null,null,null,null,null,null,null,null,null,48,null,null,null,null,null,null,null,null,null,null,null,null,null,null,null,null,null,null,null,null,30,10,20,null,20,null,null,null,8,16,null,16,null,null,null,19,38,null,38,null,null,null,null,null,null,null,null,null,null,null,null,null,null,null,null,null,null,null,null,null,null,null,null,null,null,null,null,null,null,null,null,null,null,null,null,null,null,null,null,null,null,null,null,null,null,null,null,null,null,null,null,null,null,null,null,null,null,74]
[null,"Основы организационной деятельности: Организация управленческой и творческой деятельности","мг",null,null,8,null,null,null,null,null,{"$f":"N57+P57","v":57},null,{"$f":"V57+AC57+AJ57+AQ57+AX57+BE57+BL57+BS57","v":19},null,{"$f":"W57+AD57+AK57+AR57+AY57+BF57+BM57+BT57","v":38},{"$f":"X57+AE57+AL57+AS57+AZ57+BG57+BN57+BU57","v":38},{"$f":"Y57+AF57+AM57+AT57+BA57+BH57+BO57+BV57","v":0},null,null,null,null,null,null,null,null,null,null,null,null,null,null,null,null,null,null,null,null,null,null,null,null,null,null,null,null,null,null,48,null,null,null,null,null,null,null,null,null,null,null,null,null,null,null,null,null,null,null,null,60,19,38,38,null,null,null,null,null,null,null,null,null,null,null,null,null,null,null,null,null,null,null,null,null,null,null,null,null,null,null,null,null,null,null,null,null,null,null,null,null,null,null,null,null,null,null,null,null,null,null,null,null,null,null,null,null,null,null,null,null,null,null,38]
[null,"Основы организационной деятельности: Инструментоведение и чтение оркестровых партитур","мг",null,null,null,null,null,null,12,null,54,null,18,null,36,16,20,null,null,null,8,16,16,null,null,null,30,10,20,null,20,null,null,null,null,null,null,null,null,null,null,null,null,null,null,null,null,24,null,null,null,null,null,null,null,null,null,null,null,null,null,null,null,null,null,null,null,null,null,null,null,null,null,null,null,null,null,null,null,null,null,null,null,null,null,null,null,null,null,null,null,null,null,null,null,null,null,null,null,null,null,null,null,null,null,null,null,null,null,null,null,null,null,null,null,null,null,null,null,null,null,null,null,null,null,null,null,null,null,null,null,null,36]
[null,"Основы организационной деятельности: Основы дирижерской деятельности","инд",null,null,null,null,null,null,56,null,54,null,18,null,36,0,36,null,null,null,null,null,null,null,null,null,null,null,null,null,null,null,null,null,null,null,null,null,null,null,null,null,null,null,null,null,null,null,8,16,null,16,null,null,30,10,20,null,20,null,null,48,null,null,null,null,null,null,null,null,null,null,null,null,null,null,null,null,null,null,null,null,null,null,null,null,null,null,null,null,null,null,null,null,null,null,null,null,null,null,null,null,null,null,null,null,null,null,null,null,null,null,null,null,null,null,null,null,null,null,null,null,null,null,null,null,null,null,null,null,null,null,36]
["МДК.02.02.","Основы музыкально-просветительской и творческой деятельности: музыкальная информатика","мг",null,null,2,null,null,null,1,null,108,null,36,null,72,72,0,null,null,null,16,32,32,null,null,null,60,20,40,40,null,null,null,null,null,null,null,null,null,null,null,null,null,null,null,null,null,96,null,null,null,null,null,null,null,null,null,null,null,null,null,null,null,null,null,null,null,null,null,null,null,null,null,null,null,null,null,null,null,null,null,null,null,null,null,null,null,null,null,null,null,null,null,null,null,null,null,null,null,null,null,null,null,null,null,null,null,null,null,null,null,null,null,null,null,null,null,null,null,null,null,null,null,null,null,null,null,null,null,null,null,72]
[null,"Основы музыкально-просветительской и творческой деятельности: цифровые музыкальные технологии","мг",null,null,null,null,null,null,4,null,60,null,20,null,40,0,40,null,null,null,null,null,null,null,null,null,null,null,null,null,null,null,null,24,null,null,null,null,null,null,null,20,40,null,40,null,null,null,null,null,null,null,null,null,null,null,null,null,null,null,null,48,null,null,null,null,null,null,null,null,null,null,null,null,null,null,null,null,null,null,null,null,null,null,null,null,null,null,null,null,null,null,null,null,null,null,null,null,null,null,null,null,null,null,null,null,null,null,null,null,null,null,null,null,null,null,null,null,null,null,null,null,null,null,null,null,null,null,null,null,null,40]
[null,"Основы музыкально-просветительской и творческой деятельности: сценическая речь","мг",null,null,2,null,null,null,1,null,54,null,18,null,36,0,36,null,null,null,8,16,null,16,null,null,30,10,20,null,20,null,null,null,null,null,null,null,null,null,null,null,null,null,null,null,null,null,null,null,null,null,null,null,null,null,null,null,null,null,null,null,null,null,null,null,null,null,57,null,null,null,null,null,null,null,null,null,null,null,null,null,null,null,null,null,null,null,null,null,null,null,null,null,null,null,null,null,null,null,null,null,null,null,null,null,null,null,null,null,null,null,null,null,null,null,null,null,null,null,null,null,null,null,null,null,null,null,null,null,null,null,36]
[null,"Основы музыкально-просветительской и творческой деятельности: постановка голоса","инд",null,null,4,null,null,null,12356,null,162,null,54,null,108,null,108,null,null,null,8,16,null,16,null,null,null,10,20,null,20,null,null,null,8,16,null,16,null,null,null,10,20,null,20,null,null,null,8,16,null,16,null,null,null,10,20,null,20,null,null,null,null,null,null,null,null,null,null,null,null,null,null,null,null,null,null,null,null,null,null,null,null,null,null,null,null,null,null,null,null,null,null,null,null,null,null,null,null,null,null,null,null,null,null,null,null,null,null,null,null,null,null,null,null,null,null,null,null,null,null,null,null,null,null,null,null,null,null,null,null,null,108]
[null,"Основы музыкально-просветительской и творческой деятельности: хоровой класс","гр",null,null,null,null,null,null,456,null,{"$f":"N64+P64","v":168},null,{"$f":"V64+AC64+AJ64+AQ64+AX64+BE64+BL64+BS64","v":56},null,{"$f":"W64+AD64+AK64+AR64+AY64+BF64+BM64+BT64","v":112},{"$f":"X64+AE64+AL64+AS64+AZ64+BG64+BN64+BU64","v":0},{"$f":"Y64+AF64+AM64+AT64+BA64+BH64+BO64+BV64","v":112},null,null,24,null,null,null,null,null,null,30,null,null,null,null,null,null,null,null,null,null,null,null,null,30,20,40,null,40,null,null,null,16,32,null,32,null,null,30,20,40,null,40,null,null,null,null,null,null,null,null,null,null,null,null,null,null,null,null,null,null,null,null,null,null,null,null,null,null,null,null,null,null,null,null,null,null,null,null,null,null,null,null,null,null,null,null,null,null,null,null,null,null,null,null,null,null,null,null,null,null,null,null,null,null,null,null,null,null,null,null,null,null,null,null,null,112]
[null,"Основы музыкально-просветительской и творческой деятельности: Доп.инструмент (Фортепиано)","инд",null,null,57,null,null,null,1268,null,213,null,71,null,142,null,142,null,null,null,8,16,null,16,null,null,30,10,20,null,20,null,null,null,null,null,null,null,null,null,null,null,null,null,null,null,null,null,8,16,null,16,null,null,null,10,20,null,20,null,null,null,16,32,null,32,null,null,30,19,38,null,38,null,null,null,null,null,null,null,null,null,null,null,null,null,null,null,null,null,null,null,null,null,null,null,null,null,null,null,null,null,null,null,null,null,null,null,null,null,null,null,null,null,null,null,null,null,null,null,null,null,null,null,null,null,null,null,null,null,null,72,70]
[null,"Основы музыкально-просветительской и творческой деятельности: Ансамблевое исполнительство (Фортепианный дуэт)","мг",null,null,6,null,null,null,5,null,54,null,18,null,36,null,36,null,null,null,null,null,null,null,null,null,null,null,null,null,null,null,null,null,null,null,null,null,null,null,null,null,null,null,null,null,null,null,8,16,null,16,null,null,30,10,20,null,20,null,null,null,null,null,null,null,null,null,null,null,null,null,null,null,null,null,null,null,null,null,null,null,null,null,null,null,null,null,null,null,null,null,null,null,null,null,null,null,null,null,null,null,null,null,null,null,null,null,null,null,null,null,null,null,null,null,null,null,null,null,null,null,null,null,null,null,null,null,null,null,null,null,36]
[null,"Основы музыкально-просветительской и творческой деятельности: Аккомпанемент","инд",null,null,6,null,null,null,5,null,54,null,18,null,36,null,36,null,null,null,null,null,null,null,null,null,null,null,null,null,null,null,null,null,null,null,null,null,null,null,null,null,null,null,null,null,null,null,8,16,null,16,null,null,30,10,20,null,20,null,null,null,null,null,null,null,null,null,null,null,null,null,null,null,null,null,null,null,null,null,null,null,null,null,null,null,null,null,null,null,null,null,null,null,null,null,null,null,null,null,null,null,null,null,null,null,null,null,null,null,null,null,null,null,null,null,null,null,null,null,null,null,null,null,null,null,null,null,null,null,null,null,36]
[null,"Основы музыкально-просветительской и творческой деятельности: Чтение с листа","инд",null,null,null,null,null,null,12,null,54,null,18,null,36,null,36,null,null,null,8,16,null,16,null,null,30,10,20,null,20,null,null,null,null,null,null,null,null,null,null,null,null,null,null,null,null,null,null,null,null,null,null,null,null,null,null,null,null,null,null,null,null,null,null,null,null,null,null,null,null,null,null,null,null,null,null,null,null,null,null,null,null,null,null,null,null,null,null,null,null,null,null,null,null,null,null,null,null,null,null,null,null,null,null,null,null,null,null,null,null,null,null,null,null,null,null,null,null,null,null,null,null,null,null,null,null,null,null,null,null,null,36]
[null,"Основы музыкально-просветительской и творческой деятельности: Музыка XX века","мг",null,null,8,null,null,null,null,null,57,null,19,null,38,null,38,null,null,null,null,null,null,null,null,null,null,null,null,null,null,null,null,null,null,null,null,null,null,null,null,null,null,null,null,null,null,null,null,null,null,null,null,null,null,null,null,null,null,null,null,null,null,null,null,null,null,null,null,19,38,null,38,null,null,null,null,null,null,null,null,null,null,null,null,null,null,null,null,null,null,null,null,null,null,null,null,null,null,null,null,null,null,null,null,null,null,null,null,null,null,null,null,null,null,null,null,null,null,null,null,null,null,null,null,null,null,null,null,null,null,null,38]
[null,"Основы музыкально-просветительской и творческой деятельности: основы композиции","мг",null,null,4,null,null,null,123,null,108,null,36,null,72,0,72,null,null,24,8,16,null,16,null,null,30,10,20,null,20,null,null,null,8,16,null,16,null,null,30,10,20,null,20,null,null,null,null,null,null,null,null,null,null,null,null,null,null,null,null,null,null,null,null,null,null,null,null,null,null,null,null,null,null,null,null,null,null,null,null,null,null,null,null,null,null,null,null,null,null,null,null,null,null,null,null,null,null,null,null,null,null,null,null,null,null,null,null,null,null,null,null,null,null,null,null,null,null,null,null,null,null,null,null,null,null,null,null,null,null,40,32]
["ПМ .03","Корреспондентская деятельность в средствах массовой информации сферы музыкальной культуры",null,{"$f":"LEN(D74)+LEN(D75)+LEN(D77)+LEN(D78)+LEN(D79)","v":1},1,1,1,1,1,18,null,120,{"$f":"SUM(M74:M79)","v":0},40,0,80,80,null,null,null,72,{"$f":"SUM(V74:V79)","v":0},{"$f":"SUM(W74:W79)","v":0},{"$f":"SUM(X74:X79)","v":0},{"$f":"SUM(Y74:Y79)","v":0},null,{"$f":"SUM(AA74:AA79)","v":0},null,{"$f":"SUM(AC74:AC79)","v":0},{"$f":"SUM(AD74:AD79)","v":0},{"$f":"SUM(AE74:AE79)","v":0},{"$f":"SUM(AF74:AF79)","v":0},null,{"$f":"SUM(AH74:AH79)","v":0},null,{"$f":"SUM(AJ74:AJ79)","v":56},{"$f":"SUM(AK74:AK79)","v":112},{"$f":"SUM(AL74:AL79)","v":0},{"$f":"SUM(AM74:AM79)","v":112},null,{"$f":"SUM(AO74:AO79)","v":0},null,{"$f":"SUM(AQ74:AQ79)","v":50},{"$f":"SUM(AR74:AR79)","v":100},{"$f":"SUM(AS74:AS79)","v":0},{"$f":"SUM(AT74:AT79)","v":100},null,{"$f":"SUM(AV74:AV79)","v":0},null,{"$f":"SUM(AX74:AX79)","v":96},{"$f":"SUM(AY74:AY79)","v":192},{"$f":"SUM(AZ74:AZ79)","v":0},{"$f":"SUM(BA74:BA79)","v":192},null,{"$f":"SUM(BC74:BC79)","v":0},null,{"$f":"SUM(BE74:BE79)","v":100},{"$f":"SUM(BF74:BF79)","v":200},{"$f":"SUM(BG74:BG79)","v":0},{"$f":"SUM(BH74:BH79)","v":200},null,{"$f":"SUM(BJ74:BJ79)","v":0},null,{"$f":"SUM(BL74:BL79)","v":128},{"$f":"SUM(BM74:BM79)","v":256},{"$f":"SUM(BN74:BN79)","v":0},{"$f":"SUM(BO74:BO79)","v":256},null,{"$f":"SUM(BQ74:BQ79)","v":0},null,{"$f":"SUM(BS74:BS79)","v":114},{"$f":"SUM(BT74:BT79)","v":228},{"$f":"SUM(BU74:BU79)","v":0},{"$f":"SUM(BV74:BV79)","v":228},null,{"$f":"SUM(BX74:BX79)","v":0},null,null,null,null,null,null,null,null,null,null,null,null,null,null,null,null,null,null,null,null,null,null,null,null,null,null,null,null,null,null,null,null,null,null,null,null,null,null,null,null,null,null,null,null,null,null,null,null,null,null,null,null,null,null,null,null,{"$f":"SUM(EC72:EC73)","v":80},{"$f":"SUM(ED74:ED79)","v":0}]
["МДК.03.01.","Основы журналистской деятельности в области музыкального искусства: музыкальная журналистика","мг",null,null,6,null,null,null,null,null,{"$f":"N72+P72","v":60},null,{"$f":"V72+AC72+AJ72+AQ72+AX72+BE72+BL72+BS72","v":20},null,{"$f":"W72+AD72+AK72+AR72+AY72+BF72+BM72+BT72","v":40},40,0,null,null,null,null,null,null,null,null,null,null,null,null,null,null,null,null,48,null,null,null,null,null,null,60,null,null,null,null,null,null,null,null,null,null,null,null,null,null,20,40,40,null,null,null,null,null,null,null,null,null,null,null,null,null,null,null,null,null,null,null,null,null,null,null,null,null,null,null,null,null,null,null,null,null,null,null,null,null,null,null,null,null,null,null,null,null,null,null,null,null,null,null,null,null,null,null,null,null,null,null,null,null,null,null,null,null,null,null,null,null,null,null,null,null,40]
[null,"Основы журналистской деятельности в области музыкального искусства: основы музыкальной критики","мг",null,null,6,null,null,null,null,null,{"$f":"N73+P73","v":60},null,{"$f":"V73+AC73+AJ73+AQ73+AX73+BE73+BL73+BS73","v":20},null,40,40,0,null,null,null,null,null,null,null,null,null,null,null,null,null,null,null,null,48,null,null,null,null,null,null,60,null,null,null,null,null,null,null,null,null,null,null,null,null,null,20,40,40,null,null,null,null,null,null,null,null,null,null,null,null,null,null,null,null,null,null,null,null,null,null,null,null,null,null,null,null,null,null,null,null,null,null,null,null,null,null,null,null,null,null,null,null,null,null,null,null,null,null,null,null,null,null,null,null,null,null,null,null,null,null,null,null,null,null,null,null,null,null,null,null,null,40]
["УП .00","Учебная практика",null,{"$f":"LEN(D75)+LEN(D77)+LEN(D78)+LEN(D79)+LEN(D82)","v":0},0,1,0,0,0,16,null,{"$f":"SUM(L75:L82)","v":1026},0,342,0,684,0,684,null,null,72,{"$f":"SUM(V75:V82)","v":0},{"$f":"SUM(W75:W82)","v":0},{"$f":"SUM(X75:X82)","v":0},{"$f":"SUM(Y75:Y82)","v":0},null,{"$f":"SUM(AA75:AA82)","v":0},null,{"$f":"SUM(AC75:AC82)","v":0},{"$f":"SUM(AD75:AD82)","v":0},{"$f":"SUM(AE75:AE82)","v":0},{"$f":"SUM(AF75:AF82)","v":0},null,{"$f":"SUM(AH75:AH82)","v":0},null,{"$f":"SUM(AJ75:AJ82)","v":32},{"$f":"SUM(AK75:AK82)","v":64},{"$f":"SUM(AL75:AL82)","v":0},{"$f":"SUM(AM75:AM82)","v":64},null,{"$f":"SUM(AO75:AO82)","v":0},null,{"$f":"SUM(AQ75:AQ82)","v":30},{"$f":"SUM(AR75:AR82)","v":60},{"$f":"SUM(AS75:AS82)","v":0},{"$f":"SUM(AT75:AT82)","v":60},null,{"$f":"SUM(AV75:AV82)","v":0},null,{"$f":"SUM(AX75:AX82)","v":64},{"$f":"SUM(AY75:AY82)","v":128},{"$f":"SUM(AZ75:AZ82)","v":0},{"$f":"SUM(BA75:BA82)","v":128},null,{"$f":"SUM(BC75:BC82)","v":0},null,{"$f":"SUM(BE75:BE82)","v":60},{"$f":"SUM(BF75:BF82)","v":120},{"$f":"SUM(BG75:BG82)","v":0},{"$f":"SUM(BH75:BH82)","v":120},null,{"$f":"SUM(BJ75:BJ82)","v":0},null,{"$f":"SUM(BL75:BL82)","v":80},{"$f":"SUM(BM75:BM82)","v":160},{"$f":"SUM(BN75:BN82)","v":0},{"$f":"SUM(BO75:BO82)","v":160},null,{"$f":"SUM(BQ75:BQ82)","v":0},null,{"$f":"SUM(BS75:BS82)","v":76},{"$f":"SUM(BT75:BT82)","v":152},{"$f":"SUM(BU75:BU82)","v":0},{"$f":"SUM(BV75:BV82)","v":152},null,{"$f":"SUM(BX75:BX82)","v":0},null,null,null,null,null,null,null,null,null,null,null,null,null,null,null,null,null,null,null,null,null,null,null,null,null,null,null,null,null,null,null,null,null,null,null,null,null,null,null,null,null,null,null,null,null,null,null,null,null,null,null,null,null,null,null,null,{"$f":"SUM(EC75:EC82)","v":684},{"$f":"SUM(ED75:ED82)","v":0}]
["УП. 01","Музыкальная литература (в том числе учебная практика по педагогической работе)","мг",null,null,null,null,null,null,345678,null,{"$f":"N75+P75","v":238},null,{"$f":"V75+AC75+AJ75+AQ75+AX75+BE75+BL75+BS75","v":79},null,{"$f":"W75+AD75+AK75+AR75+AY75+BF75+BM75+BT75","v":159},0,159,null,null,24,null,null,null,null,null,null,30,null,null,null,null,null,null,24,16,32,null,32,null,null,30,10,20,null,20,null,null,24,16,32,null,32,null,null,30,20,40,null,40,null,null,24,8,16,null,16,null,null,29,9,19,null,19,null,null,null,null,null,null,null,null,null,null,null,null,null,null,null,null,null,null,null,null,null,null,null,null,null,null,null,null,null,null,null,null,null,null,null,null,null,null,null,null,null,null,null,null,null,null,null,null,null,null,null,null,null,null,null,null,null,null,159]
[null,"Педагогическая работа: музыкальная литература","мг",null,null,null,null,null,null,78,null,105,null,35,null,70,null,70,null,null,null,null,null,null,null,null,null,null,null,null,null,null,null,null,null,null,null,null,null,null,null,null,null,null,null,null,null,null,null,null,null,null,null,null,null,null,null,null,null,null,null,null,null,16,32,null,32,null,null,null,19,38,null,38,null,null,null,null,null,null,null,null,null,null,null,null,null,null,null,null,null,null,null,null,null,null,null,null,null,null,null,null,null,null,null,null,null,null,null,null,null,null,null,null,null,null,null,null,null,null,null,null,null,null,null,null,null,null,null,null,null,null,70]
["УП. 02","Гармония","инд",null,null,null,null,null,null,34567,null,{"$f":"N77+P77","v":132},null,{"$f":"V77+AC77+AJ77+AQ77+AX77+BE77+BL77+BS77","v":44},null,88,0,88,null,null,24,null,null,null,null,null,null,null,null,null,null,null,null,null,null,8,16,null,16,null,null,30,10,20,null,20,null,null,null,8,16,null,16,null,null,30,10,20,null,20,null,null,null,8,16,null,16,null,null,null,null,null,null,null,null,null,null,null,null,null,null,null,null,null,null,null,null,null,null,null,null,null,null,null,null,null,null,null,null,null,null,null,null,null,null,null,null,null,null,null,null,null,null,null,null,null,null,null,null,null,null,null,null,null,null,null,null,null,null,null,null,null,88]
["УП. 03","Анализ музыкальных произведений","инд",null,null,null,null,null,null,567,null,{"$f":"N78+P78","v":78},null,{"$f":"V78+AC78+AJ78+AQ78+AX78+BE78+BL78+BS78","v":26},null,52,0,52,null,null,24,null,null,null,null,null,null,null,null,null,null,null,null,null,24,null,null,null,null,null,null,30,null,null,null,null,null,null,24,8,16,null,16,null,null,60,10,20,null,20,null,null,24,8,16,null,16,null,null,29,null,null,null,null,null,null,null,null,null,null,null,null,null,null,null,null,null,null,null,null,null,null,null,null,null,null,null,null,null,null,null,null,null,null,null,null,null,null,null,null,null,null,null,null,null,null,null,null,null,null,null,null,null,null,null,null,null,null,null,null,null,null,52]
["УП. 04","Полифония","инд",null,null,null,null,null,null,78,null,{"$f":"N79+P79","v":53},null,{"$f":"V79+AC79+AJ79+AQ79+AX79+BE79+BL79+BS79","v":18},null,35,0,35,null,null,null,null,null,null,null,null,null,null,null,null,null,null,null,null,24,null,null,null,null,null,null,null,null,null,null,null,null,null,null,null,null,null,null,null,null,null,null,null,null,null,null,null,48,8,16,null,16,null,null,114,10,19,null,19,null,null,null,null,null,null,null,null,null,null,null,null,null,null,null,null,null,null,null,null,null,null,null,null,null,null,null,null,null,null,null,null,null,null,null,null,null,null,null,null,null,null,null,null,null,null,null,null,null,null,null,null,null,null,null,null,null,null,35]
["УП. 05","Сольфеджио и ритмика (в том числе учебная практика по педагогической работе)","мг",null,null,6,null,null,null,34578,null,{"$f":"N80+P80","v":267},null,{"$f":"V80+AC80+AJ80+AQ80+AX80+BE80+BL80+BS80","v":89},null,{"$f":"W80+AD80+AK80+AR80+AY80+BF80+BM80+BT80","v":178},{"$f":"X80+AE80+AL80+AS80+AZ80+BG80+BN80+BU80","v":0},{"$f":"Y80+AF80+AM80+AT80+BA80+BH80+BO80+BV80","v":178},null,null,null,null,null,null,null,null,null,null,null,null,null,null,null,null,null,8,16,null,16,null,null,null,10,20,null,20,null,null,48,16,32,null,32,null,null,60,20,40,null,40,null,null,48,16,32,null,32,null,null,57,19,38,null,38,null,null,null,null,null,null,null,null,null,null,null,null,null,null,null,null,null,null,null,null,null,null,null,null,null,null,null,null,null,null,null,null,null,null,null,null,null,null,null,null,null,null,null,null,null,null,null,null,null,null,null,null,null,null,null,null,null,null,178]
[null,"Педагогическая работа: сольфеджио","инд",null,null,null,null,null,null,78,null,105,null,35,null,70,null,70,null,null,null,null,null,null,null,null,null,null,null,null,null,null,null,null,null,null,null,null,null,null,null,null,null,null,null,null,null,null,null,null,null,null,null,null,null,null,null,null,null,null,null,null,null,16,32,null,32,null,null,null,19,38,null,38,null,null,null,null,null,null,null,null,null,null,null,null,null,null,null,null,null,null,null,null,null,null,null,null,null,null,null,null,null,null,null,null,null,null,null,null,null,null,null,null,null,null,null,null,null,null,null,null,null,null,null,null,null,null,null,null,null,null,70]
["УП. 06","Инструментовка","инд",null,null,5,null,null,null,null,null,{"$f":"N82+P82","v":48},null,{"$f":"V82+AC82+AJ82+AQ82+AX82+BE82+BL82+BS82","v":16},null,32,0,32,null,null,null,null,null,null,null,null,null,null,null,null,null,null,null,null,null,null,null,null,null,null,null,null,null,null,null,null,null,null,48,16,32,null,32,null,null,null,null,null,null,null,null,null,48,null,null,null,null,null,null,57,null,null,null,null,null,null,null,null,null,null,null,null,null,null,null,null,null,null,null,null,null,null,null,null,null,null,null,null,null,null,null,null,null,null,null,null,null,null,null,null,null,null,null,null,null,null,null,null,null,null,null,null,null,null,null,null,null,null,null,null,null,null,32]
["ПП","Производственная (по профилю специальности) практика",null,null,null,null,null,null,null,null,null,null,null,"час",null,{"$f":"P84+P85","v":180},"нед",{"$f":"R84+R85","v":5},null,null,null,null,{"$f":"SUM(W84:W87)","v":20},null,{"$f":"SUM(Y84:Y85)","v":20},null,null,null,null,{"$f":"SUM(AD84:AD85)","v":25},null,{"$f":"SUM(AF84:AF85)","v":25},null,null,null,null,{"$f":"SUM(AK84:AK85)","v":20},null,{"$f":"SUM(AM84:AM85)","v":20},null,null,null,null,{"$f":"SUM(AR84:AR85)","v":25},null,{"$f":"SUM(AT84:AT85)","v":25},null,null,null,null,{"$f":"SUM(AY84:AY85)","v":20},null,{"$f":"SUM(BA84:BA85)","v":20},null,null,null,null,{"$f":"SUM(BF84:BF85)","v":25},null,{"$f":"SUM(BH84:BH85)","v":25},null,null,null,null,{"$f":"SUM(BM84:BM85)","v":20},null,{"$f":"SUM(BO84:BO85)","v":20},null,null,null,null,{"$f":"SUM(BT84:BT85)","v":25},null,{"$f":"SUM(BV84:BV85)","v":25},null,null,"час",null,null,"нед",null,null,null,"час",null,null,"нед",null,null,null,"час",null,null,"нед",null,null,null,"час",null,null,"нед",null,null,null,"час",null,null,"нед",null,null,null,"час",null,null,"нед",null,null,null,"час",null,null,"нед",null,null,null,"час",null,null,"нед"]
["ПП.01","Исполнительская (по профилю специальности)",null,null,null,null,null,null,null,null,null,null,null,"час",null,{"$f":"W84+AD84+AK84+AR84+AY84+BF84+BM84+BT84","v":144},"нед",4,null,null,null,null,16,null,16,null,null,null,null,20,null,20,null,null,null,null,16,null,16,null,null,null,null,20,null,20,null,null,null,null,16,null,16,null,null,null,null,20,null,20,null,null,null,null,16,null,16,null,null,null,null,20,null,20]
["ПП.02","Педагогическая практика",null,null,null,null,null,null,null,null,null,null,null,"час",null,{"$f":"W85+AD85+AK85+AR85+AY85+BF85+BM85+BT85","v":36},"нед",1,null,null,null,null,4,null,4,null,null,null,null,5,null,5,null,null,null,null,4,null,4,null,null,null,null,5,null,5,null,null,null,null,4,null,4,null,null,null,null,5,null,5,null,null,null,null,4,null,4,null,null,null,null,5,null,5]
["ПДП.00","Преддипломная практика",null,null,null,null,null,null,null,null,null,null,null,"час",null,{"$f":"W86+AD86+AK86+AR86+AY86+BF86+BM86+BT86","v":36},"нед",1,null,null,null,null,null,null,null,null,null,null,null,null,null,null,null,null,null,null,null,null,null,null,null,null,null,null,null,null,null,null,null,null,null,null,null,null,null,null,null,null,null,null,null,null,null,null,16,null,null,null,null,null,null,20]
["ГИА.00","Государственная (итоговая) аттестация",null,null,null,null,null,null,null,null,null,null,null,null,null,null,"нед",4,null,null,null,null,null,null,null,null,null,null,null,null,null,null,null,null,null,null,null,null,null,null,null,null,null,null,null,null,null,null,null,null,null,null,null,null,null,null,null,null,null,null,null,null,null,null,null,null,null,null,null,null,null,null,"нед",4,null,null,null,null,null,"нед",null,null,null,null,null,null,"нед",null,null,null,null,null,null,"нед",null,null,null,null,null,null,"нед",null,null,null,null,null,null,"нед",null,null,null,null,null,null,"нед",null,null,null,null,null,null,"нед",null,null,null,null,null,null,"нед"]
["ГИА.01","Подготовка выпускной квалификационной работы",null,null,null,null,null,null,null,null,null,null,null,null,null,null,"нед",1,null,null,null,null,null,null,null,null,null,null,null,null,null,null,null,null,null,null,null,null,null,null,null,null,null,null,null,null,null,null,null,null,null,null,null,null,null,null,null,null,null,null,null,null,null,null,null,null,null,null,null,null,null,null,"нед",1,null,null,null,null,null,"нед",null,null,null,null,null,null,"нед",null,null,null,null,null,null,"нед",null,null,null,null,null,null,"нед",null,null,null,null,null,null,"нед",null,null,null,null,null,null,"нед",null,null,null,null,null,null,"нед",null,null,null,null,null,null,"нед"]
["ГИА.02","Защита выпускной квалификационной работы",null,null,null,null,null,null,null,null,null,null,null,null,null,null,"нед",1,null,null,null,null,null,null,null,null,null,null,null,null,null,null,null,null,null,null,null,null,null,null,null,null,null,null,null,null,null,null,null,null,null,null,null,null,null,null,null,null,null,null,null,null,null,null,null,null,null,null,null,null,null,null,"нед",1]
["ГИА.03","Государственный экзамен(по видам инструментов)",null,null,null,null,null,null,null,null,null,null,null,null,null,null,"нед",1,null,null,null,null,null,null,null,null,null,null,null,null,null,null,null,null,null,null,null,null,null,null,null,null,null,null,null,null,null,null,null,null,null,null,null,null,null,null,null,null,null,null,null,null,null,null,null,null,null,null,null,null,null,null,"нед",1,null,null,null,null,null,"нед",null,null,null,null,null,null,"нед",null,null,null,null,null,null,"нед",null,null,null,null,null,null,"нед",null,null,null,null,null,null,"нед",null,null,null,null,null,null,"нед",null,null,null,null,null,null,"нед",null,null,null,null,null,null,"нед"]
["ГИА.04","Государственный экзамен",null,null,null,null,null,null,null,null,null,null,null,null,null,null,"нед",1,null,null,null,null,null,null,null,null,null,null,null,null,null,null,null,null,null,null,null,null,null,null,null,null,null,null,null,null,null,null,null,null,null,null,null,null,null,null,null,null,null,null,null,null,null,null,null,null,null,null,null,null,null,null,"нед",1,null,null,null,null,null,"нед",null,null,null,null,null,null,"нед",null,null,null,null,null,null,"нед",null,null,null,null,null,null,"нед",null,null,null,null,null,null,"нед",null,null,null,null,null,null,"нед",null,null,null,null,null,null,"нед",null,null,null,null,null,null,"нед"]
[null,"ВСЕГО ПО ДИСЦИПЛИНАМ И МДК",null,28,8,24,{"$f":"G9+G27+G34+G46+G55+#REF!+G74","v":{"$error":"#REF!"}},{"$f":"H9+H27+H34+H46+H55+#REF!+H74","v":{"$error":"#REF!"}},{"$f":"I9+I27+I34+I46+I55+#REF!+I74","v":{"$error":"#REF!"}},103,null,7722,null,2574,null,5148,2569,2579,null,null,864,null,null,null,null,null,null,null,null,null,null,null,null,null,null,null,null,null,null,null,null,null,null,null,null,null,null,null,null,null,null,null,null,null,null,null,null,null,null,null,null,null,null,null,null,null,null,null,null,null,null,null,null,null,null,null,null,null,null,null,null,null,null,null,null,null,null,null,null,null,null,null,null,null,null,null,null,null,null,null,null,null,null,null,null,null,null,null,null,null,null,null,null,null,null,null,null,null,null,null,null,null,null,null,null,null,null,null,null,null,null,null,4572,576]
[null,"Экзаменов",null,null,null,null,null,null,null,null,null,null,null,null,null,null,null,null,null,null,1,null,null,{"$f":"SUM(IF(IFERROR(MID(D11:D16,SEARCH(1,D11:D16),1),0)=\"1\",1,0),IF(IFERROR(MID(D18:D25,SEARCH(1,D18:D25),1),0)=\"1\",1,0),IF(IFERROR(MID(D28:D32,SEARCH(1,D28:D32),1),0)=\"1\",1,0),IF(IFERROR(MID(D35:D44,SEARCH(1,D35:D44),1),0)=\"1\",1,0),IF(IFERROR(MID(D47:D54,SEARCH(1,D47:D54),1),0)=\"1\",1,0),IF(IFERROR(MID(D56:D70,SEARCH(1,D56:D70),1),0)=\"1\",1,0),IF(IFERROR(MID(#REF!,SEARCH(1,#REF!),1),0)=\"1\",1,0),IF(IFERROR(MID(D75:D82,SEARCH(1,D75:D82),1),0)=\"1\",1,0))","v":1},null,null,null,4,null,null,{"$f":"SUM(IF(IFERROR(MID(D11:D16,SEARCH(2,D11:D16),1),0)=\"2\",1,0),IF(IFERROR(MID(D18:D25,SEARCH(2,D18:D25),1),0)=\"2\",1,0),IF(IFERROR(MID(D28:D32,SEARCH(2,D28:D32),1),0)=\"2\",1,0),IF(IFERROR(MID(D35:D44,SEARCH(2,D35:D44),1),0)=\"2\",1,0),IF(IFERROR(MID(D47:D54,SEARCH(2,D47:D54),1),0)=\"2\",1,0),IF(IFERROR(MID(D56:D70,SEARCH(2,D56:D70),1),0)=\"2\",1,0),IF(IFERROR(MID(#REF!,SEARCH(2,#REF!),1),0)=\"2\",1,0),IF(IFERROR(MID(D75:D82,SEARCH(2,D75:D82),1),0)=\"2\",1,0))","v":4},null,null,null,1,null,null,3,null,null,null,5,null,null,{"$f":"SUM(IF(IFERROR(MID(D11:D16,SEARCH(4,D11:D16),1),0)=\"4\",1,0),IF(IFERROR(MID(D18:D25,SEARCH(4,D18:D25),1),0)=\"4\",1,0),IF(IFERROR(MID(D28:D32,SEARCH(4,D28:D32),1),0)=\"4\",1,0),IF(IFERROR(MID(D35:D44,SEARCH(4,D35:D44),1),0)=\"4\",1,0),IF(IFERROR(MID(D47:D54,SEARCH(4,D47:D54),1),0)=\"4\",1,0),IF(IFERROR(MID(D56:D70,SEARCH(4,D56:D70),1),0)=\"4\",1,0),IF(IFERROR(MID(#REF!,SEARCH(4,#REF!),1),0)=\"4\",1,0),IF(IFERROR(MID(D75:D82,SEARCH(4,D75:D82),1),0)=\"4\",1,0))","v":5},null,null,null,1,null,null,{"$f":"SUM(IF(IFERROR(MID(D11:D16,SEARCH(5,D11:D16),1),0)=\"5\",1,0),IF(IFERROR(MID(D18:D25,SEARCH(5,D18:D25),1),0)=\"5\",1,0),IF(IFERROR(MID(D28:D32,SEARCH(5,D28:D32),1),0)=\"5\",1,0),IF(IFERROR(MID(D35:D44,SEARCH(5,D35:D44),1),0)=\"5\",1,0),IF(IFERROR(MID(D47:D54,SEARCH(5,D47:D54),1),0)=\"5\",1,0),IF(IFERROR(MID(D56:D70,SEARCH(5,D56:D70),1),0)=\"5\",1,0),IF(IFERROR(MID(#REF!,SEARCH(5,#REF!),1),0)=\"5\",1,0),IF(IFERROR(MID(D75:D82,SEARCH(5,D75:D82),1),0)=\"5\",1,0))","v":3},null,null,null,3,null,null,{"$f":"SUM(IF(IFERROR(MID(D11:D16,SEARCH(6,D11:D16),1),0)=\"6\",1,0),IF(IFERROR(MID(D18:D25,SEARCH(6,D18:D25),1),0)=\"6\",1,0),IF(IFERROR(MID(D28:D32,SEARCH(6,D28:D32),1),0)=\"6\",1,0),IF(IFERROR(MID(D35:D44,SEARCH(6,D35:D44),1),0)=\"6\",1,0),IF(IFERROR(MID(D47:D54,SEARCH(6,D47:D54),1),0)=\"6\",1,0),IF(IFERROR(MID(D56:D70,SEARCH(6,D56:D70),1),0)=\"6\",1,0),IF(IFERROR(MID(#REF!,SEARCH(6,#REF!),1),0)=\"6\",1,0),IF(IFERROR(MID(D75:D82,SEARCH(6,D75:D82),1),0)=\"6\",1,0))","v":3},null,null,null,2,null,null,{"$f":"SUM(IF(IFERROR(MID(D11:D16,SEARCH(7,D11:D16),1),0)=\"7\",1,0),IF(IFERROR(MID(D18:D25,SEARCH(7,D18:D25),1),0)=\"7\",1,0),IF(IFERROR(MID(D28:D32,SEARCH(7,D28:D32),1),0)=\"7\",1,0),IF(IFERROR(MID(D35:D44,SEARCH(7,D35:D44),1),0)=\"7\",1,0),IF(IFERROR(MID(D47:D54,SEARCH(7,D47:D54),1),0)=\"7\",1,0),IF(IFERROR(MID(D56:D70,SEARCH(7,D56:D70),1),0)=\"7\",1,0),IF(IFERROR(MID(#REF!,SEARCH(7,#REF!),1),0)=\"7\",1,0),IF(IFERROR(MID(D75:D82,SEARCH(7,D75:D82),1),0)=\"7\",1,0))","v":3},null,null,null,6,null,null,3]
[null,"Зачётов",null,null,null,null,null,null,null,null,null,null,null,null,null,null,null,null,null,null,1,null,null,{"$f":"SUM(IF(IFERROR(MID(E11:E16,SEARCH(1,E11:E16),1),0)=\"1\",1,0),IF(IFERROR(MID(E18:E25,SEARCH(1,E18:E25),1),0)=\"1\",1,0),IF(IFERROR(MID(E28:E32,SEARCH(1,E28:E32),1),0)=\"1\",1,0),IF(IFERROR(MID(E35:E44,SEARCH(1,E35:E44),1),0)=\"1\",1,0),IF(IFERROR(MID(E47:E54,SEARCH(1,E47:E54),1),0)=\"1\",1,0),IF(IFERROR(MID(E56:E70,SEARCH(1,E56:E70),1),0)=\"1\",1,0),IF(IFERROR(MID(#REF!,SEARCH(1,#REF!),1),0)=\"1\",1,0),IF(IFERROR(MID(E75:E82,SEARCH(1,E75:E82),1),0)=\"1\",1,0))","v":1},null,null,null,4,null,null,{"$f":"SUM(IF(IFERROR(MID(E11:E16,SEARCH(2,E11:E16),1),0)=\"2\",1,0),IF(IFERROR(MID(E18:E25,SEARCH(2,E18:E25),1),0)=\"2\",1,0),IF(IFERROR(MID(E28:E32,SEARCH(2,E28:E32),1),0)=\"2\",1,0),IF(IFERROR(MID(E35:E44,SEARCH(2,E35:E44),1),0)=\"2\",1,0),IF(IFERROR(MID(E47:E54,SEARCH(2,E47:E54),1),0)=\"2\",1,0),IF(IFERROR(MID(E56:E70,SEARCH(2,E56:E70),1),0)=\"2\",1,0),IF(IFERROR(MID(#REF!,SEARCH(2,#REF!),1),0)=\"2\",1,0),IF(IFERROR(MID(E75:E82,SEARCH(2,E75:E82),1),0)=\"2\",1,0))","v":1},null,null,null,1,null,null,{"$f":"SUM(IF(IFERROR(MID(E11:E16,SEARCH(3,E11:E16),1),0)=\"3\",1,0),IF(IFERROR(MID(E18:E25,SEARCH(3,E18:E25),1),0)=\"3\",1,0),IF(IFERROR(MID(E28:E32,SEARCH(3,E28:E32),1),0)=\"3\",1,0),IF(IFERROR(MID(E35:E44,SEARCH(3,E35:E44),1),0)=\"3\",1,0),IF(IFERROR(MID(E47:E54,SEARCH(3,E47:E54),1),0)=\"3\",1,0),IF(IFERROR(MID(E56:E70,SEARCH(3,E56:E70),1),0)=\"3\",1,0),IF(IFERROR(MID(#REF!,SEARCH(3,#REF!),1),0)=\"3\",1,0),IF(IFERROR(MID(E75:E82,SEARCH(3,E75:E82),1),0)=\"3\",1,0))","v":1},null,null,null,5,null,null,{"$f":"SUM(IF(IFERROR(MID(E11:E16,SEARCH(4,E11:E16),1),0)=\"4\",1,0),IF(IFERROR(MID(E18:E25,SEARCH(4,E18:E25),1),0)=\"4\",1,0),IF(IFERROR(MID(E28:E32,SEARCH(4,E28:E32),1),0)=\"4\",1,0),IF(IFERROR(MID(E35:E44,SEARCH(4,E35:E44),1),0)=\"4\",1,0),IF(IFERROR(MID(E47:E54,SEARCH(4,E47:E54),1),0)=\"4\",1,0),IF(IFERROR(MID(E56:E70,SEARCH(4,E56:E70),1),0)=\"4\",1,0),IF(IFERROR(MID(#REF!,SEARCH(4,#REF!),1),0)=\"4\",1,0),IF(IFERROR(MID(E75:E82,SEARCH(4,E75:E82),1),0)=\"4\",1,0))","v":1},null,null,null,1,null,null,{"$f":"SUM(IF(IFERROR(MID(E11:E16,SEARCH(5,E11:E16),1),0)=\"5\",1,0),IF(IFERROR(MID(E18:E25,SEARCH(5,E18:E25),1),0)=\"5\",1,0),IF(IFERROR(MID(E28:E32,SEARCH(5,E28:E32),1),0)=\"5\",1,0),IF(IFERROR(MID(E35:E44,SEARCH(5,E35:E44),1),0)=\"5\",1,0),IF(IFERROR(MID(E47:E54,SEARCH(5,E47:E54),1),0)=\"5\",1,0),IF(IFERROR(MID(E56:E70,SEARCH(5,E56:E70),1),0)=\"5\",1,0),IF(IFERROR(MID(#REF!,SEARCH(5,#REF!),1),0)=\"5\",1,0),IF(IFERROR(MID(E75:E82,SEARCH(5,E75:E82),1),0)=\"5\",1,0))","v":1},null,null,null,3,null,null,{"$f":"SUM(IF(IFERROR(MID(E11:E16,SEARCH(6,E11:E16),1),0)=\"6\",1,0),IF(IFERROR(MID(E18:E25,SEARCH(6,E18:E25),1),0)=\"6\",1,0),IF(IFERROR(MID(E28:E32,SEARCH(6,E28:E32),1),0)=\"6\",1,0),IF(IFERROR(MID(E35:E44,SEARCH(6,E35:E44),1),0)=\"6\",1,0),IF(IFERROR(MID(E47:E54,SEARCH(6,E47:E54),1),0)=\"6\",1,0),IF(IFERROR(MID(E56:E70,SEARCH(6,E56:E70),1),0)=\"6\",1,0),IF(IFERROR(MID(#REF!,SEARCH(6,#REF!),1),0)=\"6\",1,0),IF(IFERROR(MID(E75:E82,SEARCH(6,E75:E82),1),0)=\"6\",1,0))","v":1},null,null,null,2,null,null,{"$f":"SUM(IF(IFERROR(MID(E11:E16,SEARCH(7,E11:E16),1),0)=\"7\",1,0),IF(IFERROR(MID(E18:E25,SEARCH(7,E18:E25),1),0)=\"7\",1,0),IF(IFERROR(MID(E28:E32,SEARCH(7,E28:E32),1),0)=\"7\",1,0),IF(IFERROR(MID(E35:E44,SEARCH(7,E35:E44),1),0)=\"7\",1,0),IF(IFERROR(MID(E47:E54,SEARCH(7,E47:E54),1),0)=\"7\",1,0),IF(IFERROR(MID(E56:E70,SEARCH(7,E56:E70),1),0)=\"7\",1,0),IF(IFERROR(MID(#REF!,SEARCH(7,#REF!),1),0)=\"7\",1,0),IF(IFERROR(MID(E75:E82,SEARCH(7,E75:E82),1),0)=\"7\",1,0))","v":1},null,null,null,6,null,null,{"$f":"SUM(IF(IFERROR(MID(E11:E16,SEARCH(8,E11:E16),1),0)=\"8\",1,0),IF(IFERROR(MID(E18:E25,SEARCH(8,E18:E25),1),0)=\"8\",1,0),IF(IFERROR(MID(E28:E32,SEARCH(8,E28:E32),1),0)=\"8\",1,0),IF(IFERROR(MID(E35:E44,SEARCH(8,E35:E44),1),0)=\"8\",1,0),IF(IFERROR(MID(E47:E54,SEARCH(8,E47:E54),1),0)=\"8\",1,0),IF(IFERROR(MID(E56:E70,SEARCH(8,E56:E70),1),0)=\"8\",1,0),IF(IFERROR(MID(#REF!,SEARCH(8,#REF!),1),0)=\"8\",1,0),IF(IFERROR(MID(E75:E82,SEARCH(8,E75:E82),1),0)=\"8\",1,0))","v":0}]
[null,"Дифференицрованных зачётов",null,null,null,null,null,null,null,null,null,null,null,null,null,null,null,null,null,null,1,null,null,1,null,null,null,4,null,null,{"$f":"SUM(IF(IFERROR(MID(F11:F16,SEARCH(2,F11:F16),1),0)=\"2\",1,0),IF(IFERROR(MID(F18:F25,SEARCH(2,F18:F25),1),0)=\"2\",1,0),IF(IFERROR(MID(F28:H32,SEARCH(2,F28:I32),1),0)=\"2\",1,0),IF(IFERROR(MID(F35:F44,SEARCH(2,F35:F44),1),0)=\"2\",1,0),IF(IFERROR(MID(F47:I54,SEARCH(2,F47:F54),1),0)=\"2\",1,0),IF(IFERROR(MID(F56:F70,SEARCH(2,F56:F70),1),0)=\"2\",1,0),IF(IFERROR(MID(#REF!,SEARCH(2,#REF!),1),0)=\"2\",1,0),IF(IFERROR(MID(F75:F82,SEARCH(2,F75:F82),1),0)=\"2\",1,0))","v":5},null,null,null,1,null,null,{"$f":"SUM(IF(IFERROR(MID(F11:F16,SEARCH(3,F11:F16),1),0)=\"3\",1,0),IF(IFERROR(MID(F18:F25,SEARCH(3,F18:F25),1),0)=\"3\",1,0),IF(IFERROR(MID(F28:H32,SEARCH(3,F28:F32),1),0)=\"3\",1,0),IF(IFERROR(MID(F35:F44,SEARCH(3,F35:F44),1),0)=\"3\",1,0),IF(IFERROR(MID(F47:I54,SEARCH(3,F47:F54),1),0)=\"3\",1,0),IF(IFERROR(MID(F56:F70,SEARCH(3,F56:F70),1),0)=\"3\",1,0),IF(IFERROR(MID(#REF!,SEARCH(3,#REF!),1),0)=\"3\",1,0),IF(IFERROR(MID(F75:F82,SEARCH(3,F75:F82),1),0)=\"3\",1,0))","v":2},null,null,null,5,null,null,6,null,null,null,1,null,null,{"$f":"SUM(IF(IFERROR(MID(F11:F16,SEARCH(5,F11:F16),1),0)=\"5\",1,0),IF(IFERROR(MID(F18:F25,SEARCH(5,F18:F25),1),0)=\"5\",1,0),IF(IFERROR(MID(F28:F32,SEARCH(5,F28:F32),1),0)=\"5\",1,0),IF(IFERROR(MID(F35:F44,SEARCH(5,F35:F44),1),0)=\"5\",1,0),IF(IFERROR(MID(F47:F54,SEARCH(5,F47:F54),1),0)=\"5\",1,0),IF(IFERROR(MID(F56:F70,SEARCH(5,F56:F70),1),0)=\"5\",1,0),IF(IFERROR(MID(#REF!,SEARCH(5,#REF!),1),0)=\"5\",1,0),IF(IFERROR(MID(F75:F82,SEARCH(5,F75:F82),1),0)=\"5\",1,0))","v":3},null,null,null,3,null,null,5,null,null,null,2,null,null,{"$f":"SUM(IF(IFERROR(MID(F11:F16,SEARCH(7,F11:F16),1),0)=\"7\",1,0),IF(IFERROR(MID(F18:F25,SEARCH(7,F18:F25),1),0)=\"7\",1,0),IF(IFERROR(MID(F28:F32,SEARCH(7,F28:F32),1),0)=\"7\",1,0),IF(IFERROR(MID(F35:F44,SEARCH(7,F35:F44),1),0)=\"7\",1,0),IF(IFERROR(MID(F47:F54,SEARCH(7,F47:I54),1),0)=\"7\",1,0),IF(IFERROR(MID(F56:F70,SEARCH(7,F56:F70),1),0)=\"7\",1,0),IF(IFERROR(MID(#REF!,SEARCH(7,#REF!),1),0)=\"7\",1,0),IF(IFERROR(MID(F75:F82,SEARCH(7,F75:F82),1),0)=\"7\",1,0))","v":4},null,null,null,6,null,null,{"$f":"SUM(IF(IFERROR(MID(F11:F16,SEARCH(8,F11:F16),1),0)=\"8\",1,0),IF(IFERROR(MID(F18:F25,SEARCH(8,F18:F25),1),0)=\"8\",1,0),IF(IFERROR(MID(F28:F32,SEARCH(8,F28:F32),1),0)=\"8\",1,0),IF(IFERROR(MID(F35:F44,SEARCH(8,F35:F44),1),0)=\"8\",1,0),IF(IFERROR(MID(F47:F54,SEARCH(8,F47:I54),1),0)=\"8\",1,0),IF(IFERROR(MID(F56:F70,SEARCH(8,F56:F70),1),0)=\"8\",1,0),IF(IFERROR(MID(#REF!,SEARCH(8,#REF!),1),0)=\"8\",1,0),IF(IFERROR(MID(F75:F82,SEARCH(8,F75:F82),1),0)=\"8\",1,0))","v":6}]
[null,"Контрольных работ (итоговые письм. классные)"]
[null,"Контрольных работ (домашние)"]

{"sheet":"Кабинеты","index":3,"n_rows":15,"n_cols":3,"rows_kept":15,"cut":false,"hidden":false,"merged":[]}
[null,"№","Наименование"]
[null,"1","Кабинеты: русского языка и литературы;"]
[null,"2","математики и информатики;"]
[null,"3","иностранного языка;"]
[null,"4","истории, географии и обществознания;"]
[null,5,"гуманитарных и социально-экономических дисциплин;"]
[null,6,"мировой художественной культуры;"]
[null,7,"музыкально-теоретических дисциплин;"]
[null,8,"музыкальной литературы."]
[null,9,"Учебные классы:  для групповых и индивидуальных занятий;"]
[null,10,"для проведения оркестровых и ансамблевых занятий;"]
[null,10,"Спортивный комплекс: спортивный зал. "]
[null,11,"Залы:  концертный зал от 100 посадочных мест с концертными роялями, пультами и звукотехническим оборудованием;  "]
[null,12," малый концертный зал от 30 посадочных мест с концертным роялем"]
[null,13,"библиотека, читальный зал с выходом в сеть Интернет, помещения, соответствующие профилю подготовки, для работы со специализированными материалами (фонотека, видеотека, фильмотека, просмотровый видеозал)."]

{"sheet":"Start","index":4,"n_rows":0,"n_cols":0,"rows_kept":0,"cut":false,"hidden":true,"merged":[]}